{"text_format":"1","workbook":"xlsx","n_sheets":7,"sheets":["F_Choque","R_Claridad","Informe","R_foto","BD_INS","Ins","BD_Pro"],"not_rendered":{"charts":0,"images":27,"macros":1,"external_links":0,"defined_names":13,"comments":0,"pivot_tables":0},"unopened":[],"bounds":{"document_bytes":16777216,"sheet_cells":100000,"rows_first":2000,"rows_last":500,"rows_between":2000,"halvings":0,"cell_chars":16384,"cell_head_chars":4096},"cells_cut":0,"cells_raw":0,"read":"whole","date_system":"1900"}

{"sheet":"F_Choque","index":0,"n_rows":34,"n_cols":19,"rows_kept":34,"cut":false,"hidden":false,"merged":[[4,3,5,4]]}
[]
[null,"Modelo de calculo para fuerza de choque"]
[null,"A continuación se presenta un cuadro de resultados basados en una formula básica para el calculo de la fuerza de choque"]
[]
[null,"F: W x G x FF",null,"Definición de variables",null,null,"W:","Peso del usuario incluidos herramientas, uniforme, materiales y EPP´s, min. 59 kg - máx.. 140kg"]
[null,null,null,null,null,null,"G:","Fuerza / aceleración de la gravedad, 9.8 m/s²"]
[null,null,null,null,null,null,"FF:","Distancia de caída libre, valores entre 0,6m y 1,8m"]
[]
[null,"kg/m",60,65,70,75,80,85,90,95,100,105,110,115,120,125,130,135,140]
[null,0.6,{"$f":"+C$9*$B10*9.8","v":352.8},{"$f":"+D$9*$B10*9.8","v":382.20000000000005},411.6,441.00000000000006,470.40000000000003,499.8,529.20000000000005,558.6,588,617.40000000000009,646.80000000000007,676.2,705.6,735,764.40000000000009,793.80000000000007,823.2]
[null,0.65,{"$f":"+C$9*$B11*9.8","v":382.20000000000005},414.05,445.90000000000003,477.75000000000006,509.6,541.45000000000005,573.30000000000007,605.15000000000009,637,668.85,700.7,732.55000000000007,764.40000000000009,796.25000000000011,828.1,859.95,891.80000000000007]
[null,0.7,411.6,445.90000000000003,480.20000000000005,514.5,548.80000000000007,583.1,617.4,651.70000000000005,686,720.30000000000007,754.6,788.90000000000009,823.2,857.50000000000011,891.80000000000007,926.1,960.40000000000009]
[null,0.75,441.00000000000006,477.75000000000006,514.5,551.25,588,624.75,661.5,698.25,735,771.75,808.50000000000011,845.25000000000011,882.00000000000011,918.75000000000011,955.50000000000011,992.25000000000011,1029]
[null,0.8,470.40000000000003,509.6,548.80000000000007,588,627.20000000000005,666.40000000000009,705.6,744.80000000000007,784,823.2,862.40000000000009,901.6,940.80000000000007,980.00000000000011,1019.2,1058.4000000000001,1097.6000000000001]
[null,0.85,499.8,541.45000000000005,583.1,624.75,666.40000000000009,708.05000000000007,749.7,791.35,833.00000000000011,874.65000000000009,916.30000000000007,957.95,999.6,1041.25,1082.9000000000001,1124.5500000000002,1166.2]
[null,0.9,529.20000000000005,573.30000000000007,617.40000000000009,661.5,705.6,749.7,793.80000000000007,837.90000000000009,882.00000000000011,926.1,970.2,1014.3000000000001,1058.4000000000001,1102.5,1146.6000000000001,1190.7,1234.8000000000002]
[null,0.95,558.6,605.15000000000009,651.70000000000005,698.25,744.80000000000007,791.35,837.90000000000009,884.45,931.00000000000011,977.55000000000007,1024.1000000000001,1070.6500000000001,1117.2,1163.75,1210.3000000000002,1256.8500000000001,1303.4000000000001]
[null,1,588,637,686,735,784,833.00000000000011,882.00000000000011,931.00000000000011,980.00000000000011,1029,1078,1127,1176,1225,1274,1323,1372]
[null,1.05,617.40000000000009,668.85,720.30000000000007,771.75,823.2,874.65000000000009,926.1,977.55000000000007,1029,1080.45,1131.9000000000001,1183.3500000000001,1234.8000000000002,1286.25,1337.7,1389.15,1440.6000000000001]
[null,1.1000000000000001,646.80000000000007,700.7,754.6,808.50000000000011,862.40000000000009,916.30000000000018,970.20000000000016,1024.1000000000001,1078.0000000000002,1131.9000000000003,1185.8000000000002,1239.7000000000003,1293.6000000000001,1347.5,1401.4,1455.3000000000002,1509.2]
[null,1.1499999999999999,676.2,732.55000000000007,788.90000000000009,845.25000000000011,901.6,957.94999999999993,1014.3,1070.6499999999999,1127,1183.3499999999999,1239.7,1296.0500000000002,1352.4,1408.75,1465.1000000000001,1521.45,1577.8000000000002]
[null,1.2,705.6,764.40000000000009,823.2,882.00000000000011,940.80000000000007,999.6,1058.4000000000001,1117.2,1176,1234.8000000000002,1293.6000000000001,1352.4,1411.2,1470,1528.8000000000002,1587.6000000000001,1646.4]
[null,1.25,735,796.25000000000011,857.50000000000011,918.75000000000011,980.00000000000011,1041.25,1102.5,1163.75,1225,1286.25,1347.5,1408.75,1470,1531.25,1592.5000000000002,1653.7500000000002,1715.0000000000002]
[null,1.3,764.40000000000009,828.1,891.80000000000007,955.50000000000011,1019.2,1082.9000000000001,1146.6000000000001,1210.3000000000002,1274,1337.7,1401.4,1465.1000000000001,1528.8000000000002,1592.5000000000002,1656.2,1719.9,1783.6000000000001]
[null,1.35,793.80000000000007,859.95,926.1,992.25000000000011,1058.4000000000001,1124.5500000000002,1190.7000000000003,1256.8500000000001,1323,1389.15,1455.3000000000002,1521.45,1587.6000000000001,1653.7500000000002,1719.9,1786.0500000000002,{"$f":"+S$9*$B25*9.8","v":1852.2}]
[null,1.4,823.2,891.80000000000007,960.40000000000009,1029,1097.6000000000001,1166.2,1234.8,1303.4000000000001,1372,1440.6000000000001,1509.2,1577.8000000000002,1646.4,1715.0000000000002,1783.6000000000001,1852.2,1920.8000000000002]
[null,1.45,{"$f":"+C$9*$B27*9.8","v":852.6},923.65000000000009,994.7,1065.75,1136.8000000000002,1207.8500000000001,1278.9000000000001,1349.95,1421,1492.0500000000002,1563.1000000000001,1634.15,1705.2,1776.2500000000002,1847.3000000000002,1918.3500000000001,1989.4]
[null,1.5,882.00000000000011,955.50000000000011,1029,1102.5,1176,1249.5,1323,1396.5,1470,1543.5,1617.0000000000002,1690.5000000000002,1764.0000000000002,1837.5000000000002,1911.0000000000002,1984.5000000000002,2058]
[null,1.55,911.40000000000009,987.35,1063.3000000000002,1139.25,1215.2,1291.1500000000001,1367.1000000000001,1443.0500000000002,1519,1594.95,1670.9,1746.8500000000001,1822.8000000000002,1898.7500000000002,1974.7,2050.65,2126.6000000000004]
[null,1.6,940.80000000000007,1019.2,1097.6000000000001,1176,1254.4000000000001,1332.8000000000002,1411.2,1489.6000000000001,1568,1646.4,1724.8000000000002,1803.2,1881.6000000000001,1960.0000000000002,2038.4,2116.8000000000002,2195.2000000000003]
[null,1.65,970.2,1051.0500000000002,1131.9000000000001,1212.75,1293.6000000000001,1374.45,1455.3000000000002,1536.15,1617.0000000000002,1697.8500000000001,1778.7,1859.5500000000002,1940.4,2021.2500000000002,2102.1000000000004,2182.9500000000003,2263.8000000000002]
[null,1.7,999.6,1082.9000000000001,1166.2,1249.5,1332.8000000000002,1416.1000000000001,1499.4,1582.7,1666.0000000000002,1749.3000000000002,1832.6000000000001,1915.9,1999.2,2082.5,2165.8000000000002,2249.1000000000004,2332.4]
[null,1.75,1029,1114.75,1200.5,1286.25,1372,1457.75,1543.5,1629.2500000000002,1715.0000000000002,1800.7500000000002,1886.5000000000002,1972.2500000000002,2058,2143.75,2229.5,2315.25,2401]
[null,1.8,1058.4000000000001,1146.6000000000001,1234.8000000000002,1323,1411.2,1499.4,1587.6000000000001,1675.8000000000002,1764.0000000000002,1852.2,1940.4,2028.6000000000001,2116.8000000000002,2205,2293.2000000000003,2381.4,2469.6000000000004]

{"sheet":"R_Claridad","index":1,"n_rows":25,"n_cols":12,"rows_kept":25,"cut":false,"hidden":false,"merged":[[1,1,1,8],[4,1,4,5],[8,1,8,6],[18,10,18,11],[24,10,24,11],[19,10,19,11],[20,10,20,11],[21,10,21,11],[22,10,22,11],[23,10,23,11]]}
[]
[null,"Calculo de requerimiento de claridad "]
[null,"* Diligencie las casillas de color amarillo"]
[null,"* Los resultados de la grafica son de la primer fila",null,null,null,null,null,null,{"$f":"G10&\": \"&G11","v":"T_Ly: 12ft"}]
[null,"Datos fijos",null,null,null,null,null,null,{"$f":"F10&\": \"&F11&\" m\"","v":"CA: 5,16 m"},null,"Variables","Variables"]
[null,"Ly","Xpea","Hi","CM","Xw",null,null,{"$f":"D6&\": \"&D7&\" m\"","v":"Hi: 1,3 m"},null,"Ly","Longitud de la eslinga máx. 1,8m"]
[null,1.8,"1,2",1.3,0.3,0.46,null,null,{"$f":"F6&\": \"&F7&\" m\"","v":"Xw: 0,46 m"},null,"Xpea","Distancia de desaceleración 6ft - 1,2m y 12ft -1,5m"]
[null,null,null,null,null,null,null,null,{"$f":"C6&\": \"&C7&\" m\"","v":"Xpea: 1,2 m"},null,"Xw","Estiramiento del arnés máx. 0,457 m"]
[null,"Resultados (m)",null,null,null,null,null,null,{"$f":"E10&\": \"&E11&\" m\"","v":"CP: 3,86 m"},null,"Hi","Altura de pies a argolla dorsal"]
[null,"Ha","HDA","FF","CP","CA","T_Ly",null,{"$f":"B6&\"; \"&B7&\" m\"","v":"Ly; 1,8 m"},null,"CM","Margen de seguridad"]
[null,1.2,{"$f":"(B11-$D$7)*-1","v":0.10000000000000009},{"$f":"+$B$7+((B11-$D$7)*-1)","v":1.9000000000000001},{"$f":"+($B$7+C11)+$C$7+$F$7+$E$7","v":3.86},{"$f":"($B$7+C11)+$C$7+$F$7+$E$7+$D$7","v":5.16},{"$f":"IF(D11>1.83,\"12ft\",\"6ft\")","v":"12ft"},null,null,null,"Ha","Distancia de plataforma a punto de anclaje"]
[null,null,{"$f":"(B12-$D$7)*-1","v":1.3},{"$f":"+$B$7+((B12-$D$7)*-1)","v":3.1},{"$f":"+($B$7+C12)+$C$7+$F$7+$E$7","v":5.0599999999999996},{"$f":"($B$7+C12)+$C$7+$F$7+$E$7+$D$7","v":6.3599999999999994},{"$f":"IF(D12>1.83,\"12ft\",\"6ft\")","v":"12ft"},null,null,null,"HDA","Distancia vertical de argolla dorsal a punto de anclaje"]
[null,null,{"$f":"(B13-$D$7)*-1","v":1.3},{"$f":"+$B$7+((B13-$D$7)*-1)","v":3.1},{"$f":"+($B$7+C13)+$C$7+$F$7+$E$7","v":5.0599999999999996},{"$f":"($B$7+C13)+$C$7+$F$7+$E$7+$D$7","v":6.3599999999999994},"12ft",null,{"$f":"E6&\": \"&E7&\" m\"","v":"CM: 0,3 m"},null,"FF","Distancia de caída libre"]
[null,null,{"$f":"(B14-$D$7)*-1","v":1.3},{"$f":"+$B$7+((B14-$D$7)*-1)","v":3.1},{"$f":"+($B$7+C14)+$C$7+$F$7+$E$7","v":5.0599999999999996},{"$f":"($B$7+C14)+$C$7+$F$7+$E$7+$D$7","v":6.3599999999999994},"12ft",null,null,null,"CP","Requerimiento de claridad a plataforma"]
[null,null,null,null,null,null,null,null,null,null,"CA","Requerimiento de claridad al anclaje"]
[null,"Área del cilindro (horizontal)",null,null,null,null,null,null,null,null,"R","Radio del cilindro "]
[null,"HHDA","Hi","R min","Área ",null,null,null,null,null,"HHDA","Distancia horizontal argolla dorsal a punto de anclaje"]
[null,1,{"$f":"+$D$7","v":1.3},{"$f":"IF(B18>C18,B18,C18)+0.5","v":1.8},{"$f":"+IF(B18>C18,PI()*B18*B18,PI()*C18*C18)","v":5.3092915845667505}]
[null,1.5,{"$f":"+$D$7","v":1.3},{"$f":"IF(B19>C19,B19,C19)+0.5","v":2},{"$f":"+IF(B19>C19,PI()*B19*B19,PI()*C19*C19)","v":7.0685834705770345},null,null,null,{"$f":"D17&\": \"&D18&\" m\"","v":"R min: 1,8 m"},null,"Formulas"]
[null,2,1.3,{"$f":"IF(B20>C20,B20,C20)+0.5","v":2.5},{"$f":"+IF(B20>C20,PI()*B20*B20,PI()*C20*C20)","v":12.566370614359172},null,null,null,null,null,"CP= FF+DD+Xw+CM"]
[null,2.5,1.3,3,19.634954084936208,null,null,null,null,null,"CA= FF+DD+Hf+CM"]
[null,3,1.3,3.5,28.274333882308138,null,null,null,null,null,"FF=Ly+HDA"]
[null,null,null,null,null,null,null,null,null,null,"DD=Xpea+Xw"]
[null,null,null,null,null,null,null,null,null,null,"HF=Hi+Xw"]
[null,null,null,null,null,null,null,null,null,null,"HDA=(Ha-Hi)*(-1)"]

{"sheet":"Informe","index":2,"n_rows":11,"n_cols":16384,"rows_kept":11,"cut":false,"hidden":false,"merged":[]}
[{"$f":"XFD1","v":"eusse2024"},null,null,null,null,null,null,null,null,null,null,null,null,null,null,null,null,null,null,null,null,null,null,null,null,null,null,null,null,null,null,null,null,null,null,null,null,null,null,null,null,null,null,null,null,null,null,null,null,null,null,null,null,null,null,null,null,null,null,null,null,null,null,null,null,null,null,null,null,null,null,null,null,null,null,null,null,null,null,null,null,null,null,null,null,null,null,null,null,null,null,null,null,null,null,null,null,null,null,null,null,null,null,null,null,null,null,null,null,null,null,null,null,null,null,null,null,null,null,null,null,null,null,null,null,null,null,null,null,null,null,null,null,null,null,null,null,null,null,null,null,null,null,null,null,null,null,null,null,null,null,null,null,null,null,null,null,null,null,null,null,null,null,null,null,null,null,null,null,null,null,null,null,null,null,null,null,null,null,null,null,null,null,null,null,null,null,null,null,null,null,null,null,null,null,null,null,null,null,null,null,null,null,null,null,null,null,null,null,null,null,null,null,null,null,null,null,null,null,null,null,null,null,null,null,null,null,null,null,null,null,null,null,null,null,null,null,null,null,null,null,null,null,null,null,null,null,null,null,null,null,null,null,null,null,null,null,null,null,null,null,null,null,null,null,null,null,null,null,null,null,null,null,null,null,null,null,null,null,null,null,null,null,null,null,null,null,null,null,null,null,null,null,null,null,null,null,null,null,null,null,null,null,null,null,null,null,null,null,null,null,null,null,null,null,null,null,null,null,null,null,null,null,null,null,null,null,null,null,null,null,null,null,null,null,null,null,null,null,null,null,null,null,null,null,null,null,null,null,null,null,null,null,null,null,null,null,null,null,null,null,null,null,null,null,null,null,null,null,null,null,null,null,null,null,null,null,null,null,null,null,null,null,null,null,null,null,null,null,null,null,null,null,null,null,null,null,null,null,null,null,null,null,null,null,null,null,null,null,null,null,null,null,null,null,null,null,null,null,null,null,null,null,null,null,null,null,null,null,null,null,null,null,null,null,null,null,null,null,null,null,null,null,null,null,null,null,null,null,null,null,null,null,null,null,null,null,null,null,null,null,null,null,null,null,null,null,null,null,null,null,null,null,null,null,null,null,null,null,null,null,null,null,null,null,null,null,null,null,null,null,null,null,null,null,null,null,null,null,null,null,null,null,null,null,null,null,null,null,null,null,null,null,null,null,null,null,null,null,null,null,null,null,null,null,null,null,null,null,null,null,null,null,null,null,null,null,null,null,null,null,null,null,null,null,null,null,null,null,null,null,null,null,null,null,null,null,null,null,null,null,null,null,null,null,null,null,null,null,null,null,null,null,null,null,null,null,null,null,null,null,null,null,null,null,null,null,null,null,null,null,null,null,null,null,null,null,null,null,null,null,null,null,null,null,null,null,null,null,null,null,null,null,null,null,null,null,null,null,null,null,null,null,null,null,null,null,null,null,null,null,null,null,null,null,null,null,null,null,null,null,null,null,null,null,null,null,null,null,null,null,null,null,null,null,null,null,null,null,null,null,null,null,null,null,null,null,null,null,null,null,null,null,null,null,null,null,null,null,null,null,null,null,null,null,null,null,null,null,null,null,null,null,null,null,null,null,null,null,null,null,null,null,null,null,null,null,null,null,null,null,null,null,null,null,null,null,null,null,null,null,null,null,null,null,null,null,null,null,null,null,null,null,null,null,null,null,null,null,null,null,null,null,null,null,null,null,null,null,null,null,null,null,null,null,null,null,null,null,null,null,null,null,null,null,null,null,null,null,null,null,null,null,null,null,null,null,null,null,null,null,null,null,null,null,null,null,null,null,null,null,null,null,null,null,null,null,null,null,null,null,null,null,null,null,null,null,null,null,null,null,null,null,null,null,null,null,null,null,null,null,null,null,null,null,null,null,null,null,null,null,null,null,null,null,null,null,null,null,null,null,null,null,null,null,null,null,null,null,null,null,null,null,null,null,null,null,null,null,null,null,null,null,null,null,null,null,null,null,null,null,null,null,null,null,null,null,null,null,null,null,null,null,null,null,null,null,null,null,null,null,null,null,null,null,null,null,null,null,null,null,null,null,null,null,null,null,null,null,null,null,null,null,null,null,null,null,null,null,null,null,null,null,null,null,null,null,null,null,null,null,null,null,null,null,null,null,null,null,null,null,null,null,null,null,null,null,null,null,null,null,null,null,null,null,null,null,null,null,null,null,null,null,null,null,null,null,null,null,null,null,null,null,null,null,null,null,null,null,null,null,null,null,null,null,null,null,null,null,null,null,null,null,null,null,null,null,null,null,null,null,null,null,null,null,null,null,null,null,null,null,null,null,null,null,null,null,null,null,null,null,null,null,null,null,null,null,null,null,null,null,null,null,null,null,null,null,null,null,null,null,null,null,null,null,null,null,null,null,null,null,null,null,null,null,null,null,null,null,null,null,null,null,null,null,null,null,null,null,null,null,null,null,null,null,null,null,null,null,null,null,null,null,null,null,null,null,null,null,null,null,null,null,null,null,null,null,null,null,null,null,null,null,null,null,null,null,null,null,null,null,null,null,null,null,null,null,null,null,null,null,null,null,null,null,null,null,null,null,null,null,null,null,null,null,null,null,null,null,null,null,null,null,null,null,null,null,null,null,null,null,null,null,null,null,null,null,null,null,null,null,null,null,null,null,null,null,null,null,null,null,null,null,null,null,null,null,null,null,null,null,null,null,null,null,null,null,null,null,null,null,null,null,null,null,null,null,null,null,null,null,null,null,null,null,null,null,null,null,null,null,null,null,null,null,null,null,null,null,null,null,null,null,null,null,null,null,null,null,null,null,null,null,null,null,null,null,null,null,null,null,null,null,null,null,null,null,null,null,null,null,null,null,null,null,null,null,null,null,null,null,null,null,null,null,null,null,null,null,null,null,null,null,null,null,null,null,null,null,null,null,null,null,null,null,null,null,null,null,null,null,null,null,null,null,null,null,null,null,null,null,null,null,null,null,null,null,null,null,null,null,null,null,null,null,null,null,null,null,null,null,null,null,null,null,null,null,null,null,null,null,null,null,null,null,null,null,null,null,null,null,null,null,null,null,null,null,null,null,null,null,null,null,null,null,null,null,null,null,null,null,null,null,null,null,null,null,null,null,null,null,null,null,null,null,null,null,null,null,null,null,null,null,null,null,null,null,null,null,null,null,null,null,null,null,null,null,null,null,null,null,null,null,null,null,null,null,null,null,null,null,null,null,null,null,null,null,null,null,null,null,null,null,null,null,null,null,null,null,null,null,null,null,null,null,null,null,null,null,null,null,null,null,null,null,null,null,null,null,null,null,null,null,null,null,null,null,null,null,null,null,null,null,null,null,null,null,null,null,null,null,null,null,null,null,null,null,null,null,null,null,null,null,null,null,null,null,null,null,null,null,null,null,null,null,null,null,null,null,null,null,null,null,null,null,null,null,null,null,null,null,null,null,null,null,null,null,null,null,null,null,null,null,null,null,null,null,null,null,null,null,null,null,null,null,null,null,null,null,null,null,null,null,null,null,null,null,null,null,null,null,null,null,null,null,null,null,null,null,null,null,null,null,null,null,null,null,null,null,null,null,null,null,null,null,null,null,null,null,null,null,null,null,null,null,null,null,null,null,null,null,null,null,null,null,null,null,null,null,null,null,null,null,null,null,null,null,null,null,null,null,null,null,null,null,null,null,null,null,null,null,null,null,null,null,null,null,null,null,null,null,null,null,null,null,null,null,null,null,null,null,null,null,null,null,null,null,null,null,null,null,null,null,null,null,null,null,null,null,null,null,null,null,null,null,null,null,null,null,null,null,null,null,null,null,null,null,null,null,null,null,null,null,null,null,null,null,null,null,null,null,null,null,null,null,null,null,null,null,null,null,null,null,null,null,null,null,null,null,null,null,null,null,null,null,null,null,null,null,null,null,null,null,null,null,null,null,null,null,null,null,null,null,null,null,null,null,null,null,null,null,null,null,null,null,null,null,null,null,null,null,null,null,null,null,null,null,null,null,null,null,null,null,null,null,null,null,null,null,null,null,null,null,null,null,null,null,null,null,null,null,null,null,null,null,null,null,null,null,null,null,null,null,null,null,null,null,null,null,null,null,null,null,null,null,null,null,null,null,null,null,null,null,null,null,null,null,null,null,null,null,null,null,null,null,null,null,null,null,null,null,null,null,null,null,null,null,null,null,null,null,null,null,null,null,null,null,null,null,null,null,null,null,null,null,null,null,null,null,null,null,null,null,null,null,null,null,null,null,null,null,null,null,null,null,null,null,null,null,null,null,null,null,null,null,null,null,null,null,null,null,null,null,null,null,null,null,null,null,null,null,null,null,null,null,null,null,null,null,null,null,null,null,null,null,null,null,null,null,null,null,null,null,null,null,null,null,null,null,null,null,null,null,null,null,null,null,null,null,null,null,null,null,null,null,null,null,null,null,null,null,null,null,null,null,null,null,null,null,null,null,null,null,null,null,null,null,null,null,null,null,null,null,null,null,null,null,null,null,null,null,null,null,null,null,null,null,null,null,null,null,null,null,null,null,null,null,null,null,null,null,null,null,null,null,null,null,null,null,null,null,null,null,null,null,null,null,null,null,null,null,null,null,null,null,null,null,null,null,null,null,null,null,null,null,null,null,null,null,null,null,null,null,null,null,null,null,null,null,null,null,null,null,null,null,null,null,null,null,null,null,null,null,null,null,null,null,null,null,null,null,null,null,null,null,null,null,null,null,null,null,null,null,null,null,null,null,null,null,null,null,null,null,null,null,null,null,null,null,null,null,null,null,null,null,null,null,null,null,null,null,null,null,null,null,null,null,null,null,null,null,null,null,null,null,null,null,null,null,null,null,null,null,null,null,null,null,null,null,null,null,null,null,null,null,null,null,null,null,null,null,null,null,null,null,null,null,null,null,null,null,null,null,null,null,null,null,null,null,null,null,null,null,null,null,null,null,null,null,null,null,null,null,null,null,null,null,null,null,null,null,null,null,null,null,null,null,null,null,null,null,null,null,null,null,null,null,null,null,null,null,null,null,null,null,null,null,null,null,null,null,null,null,null,null,null,null,null,null,null,null,null,null,null,null,null,null,null,null,null,null,null,null,null,null,null,null,null,null,null,null,null,null,null,null,null,null,null,null,null,null,null,null,null,null,null,null,null,null,null,null,null,null,null,null,null,null,null,null,null,null,null,null,null,null,null,null,null,null,null,null,null,null,null,null,null,null,null,null,null,null,null,null,null,null,null,null,null,null,null,null,null,null,null,null,null,null,null,null,null,null,null,null,null,null,null,null,null,null,null,null,null,null,null,null,null,null,null,null,null,null,null,null,null,null,null,null,null,null,null,null,null,null,null,null,null,null,null,null,null,null,null,null,null,null,null,null,null,null,null,null,null,null,null,null,null,null,null,null,null,null,null,null,null,null,null,null,null,null,null,null,null,null,null,null,null,null,null,null,null,null,null,null,null,null,null,null,null,null,null,null,null,null,null,null,null,null,null,null,null,null,null,null,null,null,null,null,null,null,null,null,null,null,null,null,null,null,null,null,null,null,null,null,null,null,null,null,null,null,null,null,null,null,null,null,null,null,null,null,null,null,null,null,null,null,null,null,null,null,null,null,null,null,null,null,null,null,null,null,null,null,null,null,null,null,null,null,null,null,null,null,null,null,null,null,null,null,null,null,null,null,null,null,null,null,null,null,null,null,null,null,null,null,null,null,null,null,null,null,null,null,null,null,null,null,null,null,null,null,null,null,null,null,null,null,null,null,null,null,null,null,null,null,null,null,null,null,null,null,null,null,null,null,null,null,null,null,null,null,null,null,null,null,null,null,null,null,null,null,null,null,null,null,null,null,null,null,null,null,null,null,null,null,null,null,null,null,null,null,null,null,null,null,null,null,null,null,null,null,null,null,null,null,null,null,null,null,null,null,null,null,null,null,null,null,null,null,null,null,null,null,null,null,null,null,null,null,null,null,null,null,null,null,null,null,null,null,null,null,null,null,null,null,null,null,null,null,null,null,null,null,null,null,null,null,null,null,null,null,null,null,null,null,null,null,null,null,null,null,null,null,null,null,null,null,null,null,null,null,null,null,null,null,null,null,null,null,null,null,null,null,null,null,null,null,null,null,null,null,null,null,null,null,null,null,null,null,null,null,null,null,null,null,null,null,null,null,null,null,null,null,null,null,null,null,null,null,null,null,null,null,null,null,null,null,null,null,null,null,null,null,null,null,null,null,null,null,null,null,null,null,null,null,null,null,null,null,null,null,null,null,null,null,null,null,null,null,null,null,null,null,null,null,null,null,null,null,null,null,null,null,null,null,null,null,null,null,null,null,null,null,null,null,null,null,null,null,null,null,null,null,null,null,null,null,null,null,null,null,null,null,null,null,null,null,null,null,null,null,null,null,null,null,null,null,null,null,null,null,null,null,null,null,null,null,null,null,null,null,null,null,null,null,null,null,null,null,null,null,null,null,null,null,null,null,null,null,null,null,null,null,null,null,null,null,null,null,null,null,null,null,null,null,null,null,null,null,null,null,null,null,null,null,null,null,null,null,null,null,null,null,null,null,null,null,null,null,null,null,null,null,null,null,null,null,null,null,null,null,null,null,null,null,null,null,null,null,null,null,null,null,null,null,null,null,null,null,null,null,null,null,null,null,null,null,null,null,null,null,null,null,null,null,null,null,null,null,null,null,null,null,null,null,null,null,null,null,null,null,null,null,null,null,null,null,null,null,null,null,null,null,null,null,null,null,null,null,null,null,null,null,null,null,null,null,null,null,null,null,null,null,null,null,null,null,null,null,null,null,null,null,null,null,null,null,null,null,null,null,null,null,null,null,null,null,null,null,null,null,null,null,null,null,null,null,null,null,null,null,null,null,null,null,null,null,null,null,null,null,null,null,null,null,null,null,null,null,null,null,null,null,null,null,null,null,null,null,null,null,null,null,null,null,null,null,null,null,null,null,null,null,null,null,null,null,null,null,null,null,null,null,null,null,null,null,null,null,null,null,null,null,null,null,null,null,null,null,null,null,null,null,null,null,null,null,null,null,null,null,null,null,null,null,null,null,null,null,null,null,null,null,null,null,null,null,null,null,null,null,null,null,null,null,null,null,null,null,null,null,null,null,null,null,null,null,null,null,null,null,null,null,null,null,null,null,null,null,null,null,null,null,null,null,null,null,null,null,null,null,null,null,null,null,null,null,null,null,null,null,null,null,null,null,null,null,null,null,null,null,null,null,null,null,null,null,null,null,null,null,null,null,null,null,null,null,null,null,null,null,null,null,null,null,null,null,null,null,null,null,null,null,null,null,null,null,null,null,null,null,null,null,null,null,null,null,null,null,null,null,null,null,null,null,null,null,null,null,null,null,null,null,null,null,null,null,null,null,null,null,null,null,null,null,null,null,null,null,null,null,null,null,null,null,null,null,null,null,null,null,null,null,null,null,null,null,null,null,null,null,null,null,null,null,null,null,null,null,null,null,null,null,null,null,null,null,null,null,null,null,null,null,null,null,null,null,null,null,null,null,null,null,null,null,null,null,null,null,null,null,null,null,null,null,null,null,null,null,null,null,null,null,null,null,null,null,null,null,null,null,null,null,null,null,null,null,null,null,null,null,null,null,null,null,null,null,null,null,null,null,null,null,null,null,null,null,null,null,null,null,null,null,null,null,null,null,null,null,null,null,null,null,null,null,null,null,null,null,null,null,null,null,null,null,null,null,null,null,null,null,null,null,null,null,null,null,null,null,null,null,null,null,null,null,null,null,null,null,null,null,null,null,null,null,null,null,null,null,null,null,null,null,null,null,null,null,null,null,null,null,null,null,null,null,null,null,null,null,null,null,null,null,null,null,null,null,null,null,null,null,null,null,null,null,null,null,null,null,null,null,null,null,null,null,null,null,null,null,null,null,null,null,null,null,null,null,null,null,null,null,null,null,null,null,null,null,null,null,null,null,null,null,null,null,null,null,null,null,null,null,null,null,null,null,null,null,null,null,null,null,null,null,null,null,null,null,null,null,null,null,null,null,null,null,null,null,null,null,null,null,null,null,null,null,null,null,null,null,null,null,null,null,null,null,null,null,null,null,null,null,null,null,null,null,null,null,null,null,null,null,null,null,null,null,null,null,null,null,null,null,null,null,null,null,null,null,null,null,null,null,null,null,null,null,null,null,null,null,null,null,null,null,null,null,null,null,null,null,null,null,null,null,null,null,null,null,null,null,null,null,null,null,null,null,null,null,null,null,null,null,null,null,null,null,null,null,null,null,null,null,null,null,null,null,null,null,null,null,null,null,null,null,null,null,null,null,null,null,null,null,null,null,null,null,null,null,null,null,null,null,null,null,null,null,null,null,null,null,null,null,null,null,null,null,null,null,null,null,null,null,null,null,null,null,null,null,null,null,null,null,null,null,null,null,null,null,null,null,null,null,null,null,null,null,null,null,null,null,null,null,null,null,null,null,null,null,null,null,null,null,null,null,null,null,null,null,null,null,null,null,null,null,null,null,null,null,null,null,null,null,null,null,null,null,null,null,null,null,null,null,null,null,null,null,null,null,null,null,null,null,null,null,null,null,null,null,null,null,null,null,null,null,null,null,null,null,null,null,null,null,null,null,null,null,null,null,null,null,null,null,null,null,null,null,null,null,null,null,null,null,null,null,null,null,null,null,null,null,null,null,null,null,null,null,null,null,null,null,null,null,null,null,null,null,null,null,null,null,null,null,null,null,null,null,null,null,null,null,null,null,null,null,null,null,null,null,null,null,null,null,null,null,null,null,null,null,null,null,null,null,null,null,null,null,null,null,null,null,null,null,null,null,null,null,null,null,null,null,null,null,null,null,null,null,null,null,null,null,null,null,null,null,null,null,null,null,null,null,null,null,null,null,null,null,null,null,null,null,null,null,null,null,null,null,null,null,null,null,null,null,null,null,null,null,null,null,null,null,null,null,null,null,null,null,null,null,null,null,null,null,null,null,null,null,null,null,null,null,null,null,null,null,null,null,null,null,null,null,null,null,null,null,null,null,null,null,null,null,null,null,null,null,null,null,null,null,null,null,null,null,null,null,null,null,null,null,null,null,null,null,null,null,null,null,null,null,null,null,null,null,null,null,null,null,null,null,null,null,null,null,null,null,null,null,null,null,null,null,null,null,null,null,null,null,null,null,null,null,null,null,null,null,null,null,null,null,null,null,null,null,null,null,null,null,null,null,null,null,null,null,null,null,null,null,null,null,null,null,null,null,null,null,null,null,null,null,null,null,null,null,null,null,null,null,null,null,null,null,null,null,null,null,null,null,null,null,null,null,null,null,null,null,null,null,null,null,null,null,null,null,null,null,null,null,null,null,null,null,null,null,null,null,null,null,null,null,null,null,null,null,null,null,null,null,null,null,null,null,null,null,null,null,null,null,null,null,null,null,null,null,null,null,null,null,null,null,null,null,null,null,null,null,null,null,null,null,null,null,null,null,null,null,null,null,null,null,null,null,null,null,null,null,null,null,null,null,null,null,null,null,null,null,null,null,null,null,null,null,null,null,null,null,null,null,null,null,null,null,null,null,null,null,null,null,null,null,null,null,null,null,null,null,null,null,null,null,null,null,null,null,null,null,null,null,null,null,null,null,null,null,null,null,null,null,null,null,null,null,null,null,null,null,null,null,null,null,null,null,null,null,null,null,null,null,null,null,null,null,null,null,null,null,null,null,null,null,null,null,null,null,null,null,null,null,null,null,null,null,null,null,null,null,null,null,null,null,null,null,null,null,null,null,null,null,null,null,null,null,null,null,null,null,null,null,null,null,null,null,null,null,null,null,null,null,null,null,null,null,null,null,null,null,null,null,null,null,null,null,null,null,null,null,null,null,null,null,null,null,null,null,null,null,null,null,null,null,null,null,null,null,null,null,null,null,null,null,null,null,null,null,null,null,null,null,null,null,null,null,null,null,null,null,null,null,null,null,null,null,null,null,null,null,null,null,null,null,null,null,null,null,null,null,null,null,null,null,null,null,null,null,null,null,null,null,null,null,null,null,null,null,null,null,null,null,null,null,null,null,null,null,null,null,null,null,null,null,null,null,null,null,null,null,null,null,null,null,null,null,null,null,null,null,null,null,null,null,null,null,null,null,null,null,null,null,null,null,null,null,null,null,null,null,null,null,null,null,null,null,null,null,null,null,null,null,null,null,null,null,null,null,null,null,null,null,null,null,null,null,null,null,null,null,null,null,null,null,null,null,null,null,null,null,null,null,null,null,null,null,null,null,null,null,null,null,null,null,null,null,null,null,null,null,null,null,null,null,null,null,null,null,null,null,null,null,null,null,null,null,null,null,null,null,null,null,null,null,null,null,null,null,null,null,null,null,null,null,null,null,null,null,null,null,null,null,null,null,null,null,null,null,null,null,null,null,null,null,null,null,null,null,null,null,null,null,null,null,null,null,null,null,null,null,null,null,null,null,null,null,null,null,null,null,null,null,null,null,null,null,null,null,null,null,null,null,null,null,null,null,null,null,null,null,null,null,null,null,null,null,null,null,null,null,null,null,null,null,null,null,null,null,null,null,null,null,null,null,null,null,null,null,null,null,null,null,null,null,null,null,null,null,null,null,null,null,null,null,null,null,null,null,null,null,null,null,null,null,null,null,null,null,null,null,null,null,null,null,null,null,null,null,null,null,null,null,null,null,null,null,null,null,null,null,null,null,null,null,null,null,null,null,null,null,null,null,null,null,null,null,null,null,null,null,null,null,null,null,null,null,null,null,null,null,null,null,null,null,null,null,null,null,null,null,null,null,null,null,null,null,null,null,null,null,null,null,null,null,null,null,null,null,null,null,null,null,null,null,null,null,null,null,null,null,null,null,null,null,null,null,null,null,null,null,null,null,null,null,null,null,null,null,null,null,null,null,null,null,null,null,null,null,null,null,null,null,null,null,null,null,null,null,null,null,null,null,null,null,null,null,null,null,null,null,null,null,null,null,null,null,null,null,null,null,null,null,null,null,null,null,null,null,null,null,null,null,null,null,null,null,null,null,null,null,null,null,null,null,null,null,null,null,null,null,null,null,null,null,null,null,null,null,null,null,null,null,null,null,null,null,null,null,null,null,null,null,null,null,null,null,null,null,null,null,null,null,null,null,null,null,null,null,null,null,null,null,null,null,null,null,null,null,null,null,null,null,null,null,null,null,null,null,null,null,null,null,null,null,null,null,null,null,null,null,null,null,null,null,null,null,null,null,null,null,null,null,null,null,null,null,null,null,null,null,null,null,null,null,null,null,null,null,null,null,null,null,null,null,null,null,null,null,null,null,null,null,null,null,null,null,null,null,null,null,null,null,null,null,null,null,null,null,null,null,null,null,null,null,null,null,null,null,null,null,null,null,null,null,null,null,null,null,null,null,null,null,null,null,null,null,null,null,null,null,null,null,null,null,null,null,null,null,null,null,null,null,null,null,null,null,null,null,null,null,null,null,null,null,null,null,null,null,null,null,null,null,null,null,null,null,null,null,null,null,null,null,null,null,null,null,null,null,null,null,null,null,null,null,null,null,null,null,null,null,null,null,null,null,null,null,null,null,null,null,null,null,null,null,null,null,null,null,null,null,null,null,null,null,null,null,null,null,null,null,null,null,null,null,null,null,null,null,null,null,null,null,null,null,null,null,null,null,null,null,null,null,null,null,null,null,null,null,null,null,null,null,null,null,null,null,null,null,null,null,null,null,null,null,null,null,null,null,null,null,null,null,null,null,null,null,null,null,null,null,null,null,null,null,null,null,null,null,null,null,null,null,null,null,null,null,null,null,null,null,null,null,null,null,null,null,null,null,null,null,null,null,null,null,null,null,null,null,null,null,null,null,null,null,null,null,null,null,null,null,null,null,null,null,null,null,null,null,null,null,null,null,null,null,null,null,null,null,null,null,null,null,null,null,null,null,null,null,null,null,null,null,null,null,null,null,null,null,null,null,null,null,null,null,null,null,null,null,null,null,null,null,null,null,null,null,null,null,null,null,null,null,null,null,null,null,null,null,null,null,null,null,null,null,null,null,null,null,null,null,null,null,null,null,null,null,null,null,null,null,null,null,null,null,null,null,null,null,null,null,null,null,null,null,null,null,null,null,null,null,null,null,null,null,null,null,null,null,null,null,null,null,null,null,null,null,null,null,null,null,null,null,null,null,null,null,null,null,null,null,null,null,null,null,null,null,null,null,null,null,null,null,null,null,null,null,null,null,null,null,null,null,null,null,null,null,null,null,null,null,null,null,null,null,null,null,null,null,null,null,null,null,null,null,null,null,null,null,null,null,null,null,null,null,null,null,null,null,null,null,null,null,null,null,null,null,null,null,null,null,null,null,null,null,null,null,null,null,null,null,null,null,null,null,null,null,null,null,null,null,null,null,null,null,null,null,null,null,null,null,null,null,null,null,null,null,null,null,null,null,null,null,null,null,null,null,null,null,null,null,null,null,null,null,null,null,null,null,null,null,null,null,null,null,null,null,null,null,null,null,null,null,null,null,null,null,null,null,null,null,null,null,null,null,null,null,null,null,null,null,null,null,null,null,null,null,null,null,null,null,null,null,null,null,null,null,null,null,null,null,null,null,null,null,null,null,null,null,null,null,null,null,null,null,null,null,null,null,null,null,null,null,null,null,null,null,null,null,null,null,null,null,null,null,null,null,null,null,null,null,null,null,null,null,null,null,null,null,null,null,null,null,null,null,null,null,null,null,null,null,null,null,null,null,null,null,null,null,null,null,null,null,null,null,null,null,null,null,null,null,null,null,null,null,null,null,null,null,null,null,null,null,null,null,null,null,null,null,null,null,null,null,null,null,null,null,null,null,null,null,null,null,null,null,null,null,null,null,null,null,null,null,null,null,null,null,null,null,null,null,null,null,null,null,null,null,null,null,null,null,null,null,null,null,null,null,null,null,null,null,null,null,null,null,null,null,null,null,null,null,null,null,null,null,null,null,null,null,null,null,null,null,null,null,null,null,null,null,null,null,null,null,null,null,null,null,null,null,null,null,null,null,null,null,null,null,null,null,null,null,null,null,null,null,null,null,null,null,null,null,null,null,null,null,null,null,null,null,null,null,null,null,null,null,null,null,null,null,null,null,null,null,null,null,null,null,null,null,null,null,null,null,null,null,null,null,null,null,null,null,null,null,null,null,null,null,null,null,null,null,null,null,null,null,null,null,null,null,null,null,null,null,null,null,null,null,null,null,null,null,null,null,null,null,null,null,null,null,null,null,null,null,null,null,null,null,null,null,null,null,null,null,null,null,null,null,null,null,null,null,null,null,null,null,null,null,null,null,null,null,null,null,null,null,null,null,null,null,null,null,null,null,null,null,null,null,null,null,null,null,null,null,null,null,null,null,null,null,null,null,null,null,null,null,null,null,null,null,null,null,null,null,null,null,null,null,null,null,null,null,null,null,null,null,null,null,null,null,null,null,null,null,null,null,null,null,null,null,null,null,null,null,null,null,null,null,null,null,null,null,null,null,null,null,null,null,null,null,null,null,null,null,null,null,null,null,null,null,null,null,null,null,null,null,null,null,null,null,null,null,null,null,null,null,null,null,null,null,null,null,null,null,null,null,null,null,null,null,null,null,null,null,null,null,null,null,null,null,null,null,null,null,null,null,null,null,null,null,null,null,null,null,null,null,null,null,null,null,null,null,null,null,null,null,null,null,null,null,null,null,null,null,null,null,null,null,null,null,null,null,null,null,null,null,null,null,null,null,null,null,null,null,null,null,null,null,null,null,null,null,null,null,null,null,null,null,null,null,null,null,null,null,null,null,null,null,null,null,null,null,null,null,null,null,null,null,null,null,null,null,null,null,null,null,null,null,null,null,null,null,null,null,null,null,null,null,null,null,null,null,null,null,null,null,null,null,null,null,null,null,null,null,null,null,null,null,null,null,null,null,null,null,null,null,null,null,null,null,null,null,null,null,null,null,null,null,null,null,null,null,null,null,null,null,null,null,null,null,null,null,null,null,null,null,null,null,null,null,null,null,null,null,null,null,null,null,null,null,null,null,null,null,null,null,null,null,null,null,null,null,null,null,null,null,null,null,null,null,null,null,null,null,null,null,null,null,null,null,null,null,null,null,null,null,null,null,null,null,null,null,null,null,null,null,null,null,null,null,null,null,null,null,null,null,null,null,null,null,null,null,null,null,null,null,null,null,null,null,null,null,null,null,null,null,null,null,null,null,null,null,null,null,null,null,null,null,null,null,null,null,null,null,null,null,null,null,null,null,null,null,null,null,null,null,null,null,null,null,null,null,null,null,null,null,null,null,null,null,null,null,null,null,null,null,null,null,null,null,null,null,null,null,null,null,null,null,null,null,null,null,null,null,null,null,null,null,null,null,null,null,null,null,null,null,null,null,null,null,null,null,null,null,null,null,null,null,null,null,null,null,null,null,null,null,null,null,null,null,null,null,null,null,null,null,null,null,null,null,null,null,null,null,null,null,null,null,null,null,null,null,null,null,null,null,null,null,null,null,null,null,null,null,null,null,null,null,null,null,null,null,null,null,null,null,null,null,null,null,null,null,null,null,null,null,null,null,null,null,null,null,null,null,null,null,null,null,null,null,null,null,null,null,null,null,null,null,null,null,null,null,null,null,null,null,null,null,null,null,null,null,null,null,null,null,null,null,null,null,null,null,null,null,null,null,null,null,null,null,null,null,null,null,null,null,null,null,null,null,null,null,null,null,null,null,null,null,null,null,null,null,null,null,null,null,null,null,null,null,null,null,null,null,null,null,null,null,null,null,null,null,null,null,null,null,null,null,null,null,null,null,null,null,null,null,null,null,null,null,null,null,null,null,null,null,null,null,null,null,null,null,null,null,null,null,null,null,null,null,null,null,null,null,null,null,null,null,null,null,null,null,null,null,null,null,null,null,null,null,null,null,null,null,null,null,null,null,null,null,null,null,null,null,null,null,null,null,null,null,null,null,null,null,null,null,null,null,null,null,null,null,null,null,null,null,null,null,null,null,null,null,null,null,null,null,null,null,null,null,null,null,null,null,null,null,null,null,null,null,null,null,null,null,null,null,null,null,null,null,null,null,null,null,null,null,null,null,null,null,null,null,null,null,null,null,null,null,null,null,null,null,null,null,null,null,null,null,null,null,null,null,null,null,null,null,null,null,null,null,null,null,null,null,null,null,null,null,null,null,null,null,null,null,null,null,null,null,null,null,null,null,null,null,null,null,null,null,null,null,null,null,null,null,null,null,null,null,null,null,null,null,null,null,null,null,null,null,null,null,null,null,null,null,null,null,null,null,null,null,null,null,null,null,null,null,null,null,null,null,null,null,null,null,null,null,null,null,null,null,null,null,null,null,null,null,null,null,null,null,null,null,null,null,null,null,null,null,null,null,null,null,null,null,null,null,null,null,null,null,null,null,null,null,null,null,null,null,null,null,null,null,null,null,null,null,null,null,null,null,null,null,null,null,null,null,null,null,null,null,null,null,null,null,null,null,null,null,null,null,null,null,null,null,null,null,null,null,null,null,null,null,null,null,null,null,null,null,null,null,null,null,null,null,null,null,null,null,null,null,null,null,null,null,null,null,null,null,null,null,null,null,null,null,null,null,null,null,null,null,null,null,null,null,null,null,null,null,null,null,null,null,null,null,null,null,null,null,null,null,null,null,null,null,null,null,null,null,null,null,null,null,null,null,null,null,null,null,null,null,null,null,null,null,null,null,null,null,null,null,null,null,null,null,null,null,null,null,null,null,null,null,null,null,null,null,null,null,null,null,null,null,null,null,null,null,null,null,null,null,null,null,null,null,null,null,null,null,null,null,null,null,null,null,null,null,null,null,null,null,null,null,null,null,null,null,null,null,null,null,null,null,null,null,null,null,null,null,null,null,null,null,null,null,null,null,null,null,null,null,null,null,null,null,null,null,null,null,null,null,null,null,null,null,null,null,null,null,null,null,null,null,null,null,null,null,null,null,null,null,null,null,null,null,null,null,null,null,null,null,null,null,null,null,null,null,null,null,null,null,null,null,null,null,null,null,null,null,null,null,null,null,null,null,null,null,null,null,null,null,null,null,null,null,null,null,null,null,null,null,null,null,null,null,null,null,null,null,null,null,null,null,null,null,null,null,null,null,null,null,null,null,null,null,null,null,null,null,null,null,null,null,null,null,null,null,null,null,null,null,null,null,null,null,null,null,null,null,null,null,null,null,null,null,null,null,null,null,null,null,null,null,null,null,null,null,null,null,null,null,null,null,null,null,null,null,null,null,null,null,null,null,null,null,null,null,null,null,null,null,null,null,null,null,null,null,null,null,null,null,null,null,null,null,null,null,null,null,null,null,null,null,null,null,null,null,null,null,null,null,null,null,null,null,null,null,null,null,null,null,null,null,null,null,null,null,null,null,null,null,null,null,null,null,null,null,null,null,null,null,null,null,null,null,null,null,null,null,null,null,null,null,null,null,null,null,null,null,null,null,null,null,null,null,null,null,null,null,null,null,null,null,null,null,null,null,null,null,null,null,null,null,null,null,null,null,null,null,null,null,null,null,null,null,null,null,null,null,null,null,null,null,null,null,null,null,null,null,null,null,null,null,null,null,null,null,null,null,null,null,null,null,null,null,null,null,null,null,null,null,null,null,null,null,null,null,null,null,null,null,null,null,null,null,null,null,null,null,null,null,null,null,null,null,null,null,null,null,null,null,null,null,null,null,null,null,null,null,null,null,null,null,null,null,null,null,null,null,null,null,null,null,null,null,null,null,null,null,null,null,null,null,null,null,null,null,null,null,null,null,null,null,null,null,null,null,null,null,null,null,null,null,null,null,null,null,null,null,null,null,null,null,null,null,null,null,null,null,null,null,null,null,null,null,null,null,null,null,null,null,null,null,null,null,null,null,null,null,null,null,null,null,null,null,null,null,null,null,null,null,null,null,null,null,null,null,null,null,null,null,null,null,null,null,null,null,null,null,null,null,null,null,null,null,null,null,null,null,null,null,null,null,null,null,null,null,null,null,null,null,null,null,null,null,null,null,null,null,null,null,null,null,null,null,null,null,null,null,null,null,null,null,null,null,null,null,null,null,null,null,null,null,null,null,null,null,null,null,null,null,null,null,null,null,null,null,null,null,null,null,null,null,null,null,null,null,null,null,null,null,null,null,null,null,null,null,null,null,null,null,null,null,null,null,null,null,null,null,null,null,null,null,null,null,null,null,null,null,null,null,null,null,null,null,null,null,null,null,null,null,null,null,null,null,null,null,null,null,null,null,null,null,null,null,null,null,null,null,null,null,null,null,null,null,null,null,null,null,null,null,null,null,null,null,null,null,null,null,null,null,null,null,null,null,null,null,null,null,null,null,null,null,null,null,null,null,null,null,null,null,null,null,null,null,null,null,null,null,null,null,null,null,null,null,null,null,null,null,null,null,null,null,null,null,null,null,null,null,null,null,null,null,null,null,null,null,null,null,null,null,null,null,null,null,null,null,null,null,null,null,null,null,null,null,null,null,null,null,null,null,null,null,null,null,null,null,null,null,null,null,null,null,null,null,null,null,null,null,null,null,null,null,null,null,null,null,null,null,null,null,null,null,null,null,null,null,null,null,null,null,null,null,null,null,null,null,null,null,null,null,null,null,null,null,null,null,null,null,null,null,null,null,null,null,null,null,null,null,null,null,null,null,null,null,null,null,null,null,null,null,null,null,null,null,null,null,null,null,null,null,null,null,null,null,null,null,null,null,null,null,null,null,null,null,null,null,null,null,null,null,null,null,null,null,null,null,null,null,null,null,null,null,null,null,null,null,null,null,null,null,null,null,null,null,null,null,null,null,null,null,null,null,null,null,null,null,null,null,null,null,null,null,null,null,null,null,null,null,null,null,null,null,null,null,null,null,null,null,null,null,null,null,null,null,null,null,null,null,null,null,null,null,null,null,null,null,null,null,null,null,null,null,null,null,null,null,null,null,null,null,null,null,null,null,null,null,null,null,null,null,null,null,null,null,null,null,null,null,null,null,null,null,null,null,null,null,null,null,null,null,null,null,null,null,null,null,null,null,null,null,null,null,null,null,null,null,null,null,null,null,null,null,null,null,null,null,null,null,null,null,null,null,null,null,null,null,null,null,null,null,null,null,null,null,null,null,null,null,null,null,null,null,null,null,null,null,null,null,null,null,null,null,null,null,null,null,null,null,null,null,null,null,null,null,null,null,null,null,null,null,null,null,null,null,null,null,null,null,null,null,null,null,null,null,null,null,null,null,null,null,null,null,null,null,null,null,null,null,null,null,null,null,null,null,null,null,null,null,null,null,null,null,null,null,null,null,null,null,null,null,null,null,null,null,null,null,null,null,null,null,null,null,null,null,null,null,null,null,null,null,null,null,null,null,null,null,null,null,null,null,null,null,null,null,null,null,null,null,null,null,null,null,null,null,null,null,null,null,null,null,null,null,null,null,null,null,null,null,null,null,null,null,null,null,null,null,null,null,null,null,null,null,null,null,null,null,null,null,null,null,null,null,null,null,null,null,null,null,null,null,null,null,null,null,null,null,null,null,null,null,null,null,null,null,null,null,null,null,null,null,null,null,null,null,null,null,null,null,null,null,null,null,null,null,null,null,null,null,null,null,null,null,null,null,null,null,null,null,null,null,null,null,null,null,null,null,null,null,null,null,null,null,null,null,null,null,null,null,null,null,null,null,null,null,null,null,null,null,null,null,null,null,null,null,null,null,null,null,null,null,null,null,null,null,null,null,null,null,null,null,null,null,null,null,null,null,null,null,null,null,null,null,null,null,null,null,null,null,null,null,null,null,null,null,null,null,null,null,null,null,null,null,null,null,null,null,null,null,null,null,null,null,null,null,null,null,null,null,null,null,null,null,null,null,null,null,null,null,null,null,null,null,null,null,null,null,null,null,null,null,null,null,null,null,null,null,null,null,null,null,null,null,null,null,null,null,null,null,null,null,null,null,null,null,null,null,null,null,null,null,null,null,null,null,null,null,null,null,null,null,null,null,null,null,null,null,null,null,null,null,null,null,null,null,null,null,null,null,null,null,null,null,null,null,null,null,null,null,null,null,null,null,null,null,null,null,null,null,null,null,null,null,null,null,null,null,null,null,null,null,null,null,null,null,null,null,null,null,null,null,null,null,null,null,null,null,null,null,null,null,null,null,null,null,null,null,null,null,null,null,null,null,null,null,null,null,null,null,null,null,null,null,null,null,null,null,null,null,null,null,null,null,null,null,null,null,null,null,null,null,null,null,null,null,null,null,null,null,null,null,null,null,null,null,null,null,null,null,null,null,null,null,null,null,null,null,null,null,null,null,null,null,null,null,null,null,null,null,null,null,null,null,null,null,null,null,null,null,null,null,null,null,null,null,null,null,null,null,null,null,null,null,null,null,null,null,null,null,null,null,null,null,null,null,null,null,null,null,null,null,null,null,null,null,null,null,null,null,null,null,null,null,null,null,null,null,null,null,null,null,null,null,null,null,null,null,null,null,null,null,null,null,null,null,null,null,null,null,null,null,null,null,null,null,null,null,null,null,null,null,null,null,null,null,null,null,null,null,null,null,null,null,null,null,null,null,null,null,null,null,null,null,null,null,null,null,null,null,null,null,null,null,null,null,null,null,null,null,null,null,null,null,null,null,null,null,null,null,null,null,null,null,null,null,null,null,null,null,null,null,null,null,null,null,null,null,null,null,null,null,null,null,null,null,null,null,null,null,null,null,null,null,null,null,null,null,null,null,null,null,null,null,null,null,null,null,null,null,null,null,null,null,null,null,null,null,null,null,null,null,null,null,null,null,null,null,null,null,null,null,null,null,null,null,null,null,null,null,null,null,null,null,null,null,null,null,null,null,null,null,null,null,null,null,null,null,null,null,null,null,null,null,null,null,null,null,null,null,null,null,null,null,null,null,null,null,null,null,null,null,null,null,null,null,null,null,null,null,null,null,null,null,null,null,null,null,null,null,null,null,null,null,null,null,null,null,null,null,null,null,null,null,null,null,null,null,null,null,null,null,null,null,null,null,null,null,null,null,null,null,null,null,null,null,null,null,null,null,null,null,null,null,null,null,null,null,null,null,null,null,null,null,null,null,null,null,null,null,null,null,null,null,null,null,null,null,null,null,null,null,null,null,null,null,null,null,null,null,null,null,null,null,null,null,null,null,null,null,null,null,null,null,null,null,null,null,null,null,null,null,null,null,null,null,null,null,null,null,null,null,null,null,null,null,null,null,null,null,null,null,null,null,null,null,null,null,null,null,null,null,null,null,null,null,null,null,null,null,null,null,null,null,null,null,null,null,null,null,null,null,null,null,null,null,null,null,null,null,null,null,null,null,null,null,null,null,null,null,null,null,null,null,null,null,null,null,null,null,null,null,null,null,null,null,null,null,null,null,null,null,null,null,null,null,null,null,null,null,null,null,null,null,null,null,null,null,null,null,null,null,null,null,null,null,null,null,null,null,null,null,null,null,null,null,null,null,null,null,null,null,null,null,null,null,null,null,null,null,null,null,null,null,null,null,null,null,null,null,null,null,null,null,null,null,null,null,null,null,null,null,null,null,null,null,null,null,null,null,null,null,null,null,null,null,null,null,null,null,null,null,null,null,null,null,null,null,null,null,null,null,null,null,null,null,null,null,null,null,null,null,null,null,null,null,null,null,null,null,null,null,null,null,null,null,null,null,null,null,null,null,null,null,null,null,null,null,null,null,null,null,null,null,null,null,null,null,null,null,null,null,null,null,null,null,null,null,null,null,null,null,null,null,null,null,null,null,null,null,null,null,null,null,null,null,null,null,null,null,null,null,null,null,null,null,null,null,null,null,null,null,null,null,null,null,null,null,null,null,null,null,null,null,null,null,null,null,null,null,null,null,null,null,null,null,null,null,null,null,null,null,null,null,null,null,null,null,null,null,null,null,null,null,null,null,null,null,null,null,null,null,null,null,null,null,null,null,null,null,null,null,null,null,null,null,null,null,null,null,null,null,null,null,null,null,null,null,null,null,null,null,null,null,null,null,null,null,null,null,null,null,null,null,null,null,null,null,null,null,null,null,null,null,null,null,null,null,null,null,null,null,null,null,null,null,null,null,null,null,null,null,null,null,null,null,null,null,null,null,null,null,null,null,null,null,null,null,null,null,null,null,null,null,null,null,null,null,null,null,null,null,null,null,null,null,null,null,null,null,null,null,null,null,null,null,null,null,null,null,null,null,null,null,null,null,null,null,null,null,null,null,null,null,null,null,null,null,null,null,null,null,null,null,null,null,null,null,null,null,null,null,null,null,null,null,null,null,null,null,null,null,null,null,null,null,null,null,null,null,null,null,null,null,null,null,null,null,null,null,null,null,null,null,null,null,null,null,null,null,null,null,null,null,null,null,null,null,null,null,null,null,null,null,null,null,null,null,null,null,null,null,null,null,null,null,null,null,null,null,null,null,null,null,null,null,null,null,null,null,null,null,null,null,null,null,null,null,null,null,null,null,null,null,null,null,null,null,null,null,null,null,null,null,null,null,null,null,null,null,null,null,null,null,null,null,null,null,null,null,null,null,null,null,null,null,null,null,null,null,null,null,null,null,null,null,null,null,null,null,null,null,null,null,null,null,null,null,null,null,null,null,null,null,null,null,null,null,null,null,null,null,null,null,null,null,null,null,null,null,null,null,null,null,null,null,null,null,null,null,null,null,null,null,null,null,null,null,null,null,null,null,null,null,null,null,null,null,null,null,null,null,null,null,null,null,null,null,null,null,null,null,null,null,null,null,null,null,null,null,null,null,null,null,null,null,null,null,null,null,null,null,null,null,null,null,null,null,null,null,null,null,null,null,null,null,null,null,null,null,null,null,null,null,null,null,null,null,null,null,null,null,null,null,null,null,null,null,null,null,null,null,null,null,null,null,null,null,null,null,null,null,null,null,null,null,null,null,null,null,null,null,null,null,null,null,null,null,null,null,null,null,null,null,null,null,null,null,null,null,null,null,null,null,null,null,null,null,null,null,null,null,null,null,null,null,null,null,null,null,null,null,null,null,null,null,null,null,null,null,null,null,null,null,null,null,null,null,null,null,null,null,null,null,null,null,null,null,null,null,null,null,null,null,null,null,null,null,null,null,null,null,null,null,null,null,null,null,null,null,null,null,null,null,null,null,null,null,null,null,null,null,null,null,null,null,null,null,null,null,null,null,null,null,null,null,null,null,null,null,null,null,null,null,null,null,null,null,null,null,null,null,null,null,null,null,null,null,null,null,null,null,null,null,null,null,null,null,null,null,null,null,null,null,null,null,null,null,null,null,null,null,null,null,null,null,null,null,null,null,null,null,null,null,null,null,null,null,null,null,null,null,null,null,null,null,null,null,null,null,null,null,null,null,null,null,null,null,null,null,null,null,null,null,null,null,null,null,null,null,null,null,null,null,null,null,null,null,null,null,null,null,null,null,null,null,null,null,null,null,null,null,null,null,null,null,null,null,null,null,null,null,null,null,null,null,null,null,null,null,null,null,null,null,null,null,null,null,null,null,null,null,null,null,null,null,null,null,null,null,null,null,null,null,null,null,null,null,null,null,null,null,null,null,null,null,null,null,null,null,null,null,null,null,null,null,null,null,null,null,null,null,null,null,null,null,null,null,null,null,null,null,null,null,null,null,null,null,null,null,null,null,null,null,null,null,null,null,null,null,null,null,null,null,null,null,null,null,null,null,null,null,null,null,null,null,null,null,null,null,null,null,null,null,null,null,null,null,null,null,null,null,null,null,null,null,null,null,null,null,null,null,null,null,null,null,null,null,null,null,null,null,null,null,null,null,null,null,null,null,null,null,null,null,null,null,null,null,null,null,null,null,null,null,null,null,null,null,null,null,null,null,null,null,null,null,null,null,null,null,null,null,null,null,null,null,null,null,null,null,null,null,null,null,null,null,null,null,null,null,null,null,null,null,null,null,null,null,null,null,null,null,null,null,null,null,null,null,null,null,null,null,null,null,null,null,null,null,null,null,null,null,null,null,null,null,null,null,null,null,null,null,null,null,null,null,null,null,null,null,null,null,null,null,null,null,null,null,null,null,null,null,null,null,null,null,null,null,null,null,null,null,null,null,null,null,null,null,null,null,null,null,null,null,null,null,null,null,null,null,null,null,null,null,null,null,null,null,null,null,null,null,null,null,null,null,null,null,null,null,null,null,null,null,null,null,null,null,null,null,null,null,null,null,null,null,null,null,null,null,null,null,null,null,null,null,null,null,null,null,null,null,null,null,null,null,null,null,null,null,null,null,null,null,null,null,null,null,null,null,null,null,null,null,null,null,null,null,null,null,null,null,null,null,null,null,null,null,null,null,null,null,null,null,null,null,null,null,null,null,null,null,null,null,null,null,null,null,null,null,null,null,null,null,null,null,null,null,null,null,null,null,null,null,null,null,null,null,null,null,null,null,null,null,null,null,null,null,null,null,null,null,null,null,null,null,null,null,null,null,null,null,null,null,null,null,null,null,null,null,null,null,null,null,null,null,null,null,null,null,null,null,null,null,null,null,null,null,null,null,null,null,null,null,null,null,null,null,null,null,null,null,null,null,null,null,null,null,null,null,null,null,null,null,null,null,null,null,null,null,null,null,null,null,null,null,null,null,null,null,null,null,null,null,null,null,null,null,null,null,null,null,null,null,null,null,null,null,null,null,null,null,null,null,null,null,null,null,null,null,null,null,null,null,null,null,null,null,null,null,null,null,null,null,null,null,null,null,null,null,null,null,null,null,null,null,null,null,null,null,null,null,null,null,null,null,null,null,null,null,null,null,null,null,null,null,null,null,null,null,null,null,null,null,null,null,null,null,null,null,null,null,null,null,null,null,null,null,null,null,null,null,null,null,null,null,null,null,null,null,null,null,null,null,null,null,null,null,null,null,null,null,null,null,null,null,null,null,null,null,null,null,null,null,null,null,null,null,null,null,null,null,null,null,null,null,null,null,null,null,null,null,null,null,null,null,null,null,null,null,null,null,null,null,null,null,null,null,null,null,null,null,null,null,null,null,null,null,null,null,null,null,null,null,null,null,null,null,null,null,null,null,null,null,null,null,null,null,null,null,null,null,null,null,null,null,null,null,null,null,null,null,null,null,null,null,null,null,null,null,null,null,null,null,null,null,null,null,null,null,null,null,null,null,null,null,null,null,null,null,null,null,null,null,null,null,null,null,null,null,null,null,null,null,null,null,null,null,null,null,null,null,null,null,null,null,null,null,null,null,null,null,null,null,null,null,null,null,null,null,null,null,null,null,null,null,null,null,null,null,null,null,null,null,null,null,null,null,null,null,null,null,null,null,null,null,null,null,null,null,null,null,null,null,null,null,null,null,null,null,null,null,null,null,null,null,null,null,null,null,null,null,null,null,null,null,null,null,null,null,null,null,null,null,null,null,null,null,null,null,null,null,null,null,null,null,null,null,null,null,null,null,null,null,null,null,null,null,null,null,null,null,null,null,null,null,null,null,null,null,null,null,null,null,null,null,null,null,null,null,null,null,null,null,null,null,null,null,null,null,null,null,null,null,null,null,null,null,null,null,null,null,null,null,null,null,null,null,null,null,null,null,null,null,null,null,null,null,null,null,null,null,null,null,null,null,null,null,null,null,null,null,null,null,null,null,null,null,null,null,null,null,null,null,null,null,null,null,null,null,null,null,null,null,null,null,null,null,null,null,null,null,null,null,null,null,null,null,null,null,null,null,null,null,null,null,null,null,null,null,null,null,null,null,null,null,null,null,null,null,null,null,null,null,null,null,null,null,null,null,null,null,null,null,null,null,null,null,null,null,null,null,null,null,null,null,null,null,null,null,null,null,null,null,null,null,null,null,null,null,null,null,null,null,null,null,null,null,null,null,null,null,null,null,null,null,null,null,null,null,null,null,null,null,null,null,null,null,null,null,null,null,null,null,null,null,null,null,null,null,null,null,null,null,null,null,null,null,null,null,null,null,null,null,null,null,null,null,null,null,null,null,null,null,null,null,null,null,null,null,null,null,null,null,null,null,null,null,null,null,null,null,null,null,null,null,null,null,null,null,null,null,null,null,null,null,null,null,null,null,null,null,null,null,null,null,null,null,null,null,null,null,null,null,null,null,null,null,null,null,null,null,null,null,null,null,null,null,null,null,null,null,null,null,null,null,null,null,null,null,null,null,null,null,null,null,null,null,null,null,null,null,null,null,null,null,null,null,null,null,null,null,null,null,null,null,null,null,null,null,null,null,null,null,null,null,null,null,null,null,null,null,null,null,null,null,null,null,null,null,null,null,null,null,null,null,null,null,null,null,null,null,null,null,null,null,null,null,null,null,null,null,null,null,null,null,null,null,null,null,null,null,null,null,null,null,null,null,null,null,null,null,null,null,null,null,null,null,null,null,null,null,null,null,null,null,null,null,null,null,null,null,null,null,null,null,null,null,null,null,null,null,null,null,null,null,null,null,null,null,null,null,null,null,null,null,null,null,null,null,null,null,null,null,null,null,null,null,null,null,null,null,null,null,null,null,null,null,null,null,null,null,null,null,null,null,null,null,null,null,null,null,null,null,null,null,null,null,null,null,null,null,null,null,null,null,null,null,null,null,null,null,null,null,null,null,null,null,null,null,null,null,null,null,null,null,null,null,null,null,null,null,null,null,null,null,null,null,null,null,null,null,null,null,null,null,null,null,null,null,null,null,null,null,null,null,null,null,null,null,null,null,null,null,null,null,null,null,null,null,null,null,null,null,null,null,null,null,null,null,null,null,null,null,null,null,null,null,null,null,null,null,null,null,null,null,null,null,null,null,null,null,null,null,null,null,null,null,null,null,null,null,null,null,null,null,null,null,null,null,null,null,null,null,null,null,null,null,null,null,null,null,null,null,null,null,null,null,null,null,null,null,null,null,null,null,null,null,null,null,null,null,null,null,null,null,null,null,null,null,null,null,null,null,null,null,null,null,null,null,null,null,null,null,null,null,null,null,null,null,null,null,null,null,null,null,null,null,null,null,null,null,null,null,null,null,null,null,null,null,null,null,null,null,null,null,null,null,null,null,null,null,null,null,null,null,null,null,null,null,null,null,null,null,null,null,null,null,null,null,null,null,null,null,null,null,null,null,null,null,null,null,null,null,null,null,null,null,null,null,null,null,null,null,null,null,null,null,null,null,null,null,null,null,null,null,null,null,null,null,null,null,null,null,null,null,null,null,null,null,null,null,null,null,null,null,null,null,null,null,null,null,null,null,null,null,null,null,null,null,null,null,null,null,null,null,null,null,null,null,null,null,null,null,null,null,null,null,null,null,null,null,null,null,null,null,null,null,null,null,null,null,null,null,null,null,null,null,null,null,null,null,null,null,null,null,null,null,null,null,null,null,null,null,null,null,null,null,null,null,null,null,null,null,null,null,null,null,null,null,null,null,null,null,null,null,null,null,null,null,null,null,null,null,null,null,null,null,null,null,null,null,null,null,null,null,null,null,null,null,null,null,null,null,null,null,null,null,null,null,null,null,null,null,null,null,null,null,null,null,null,null,null,null,null,null,null,null,null,null,null,null,null,null,null,null,null,null,null,null,null,null,null,null,null,null,null,null,null,null,null,null,null,null,null,null,null,null,null,null,null,null,null,null,null,null,null,null,null,null,null,null,null,null,null,null,null,null,null,null,null,null,null,null,null,null,null,null,null,null,null,null,null,null,null,null,null,null,null,null,null,null,null,null,null,null,null,null,null,null,null,null,null,null,null,null,null,null,null,null,null,null,null,null,null,null,null,null,null,null,null,null,null,null,null,null,null,null,null,null,null,null,null,null,null,null,null,null,null,null,null,null,null,null,null,null,null,null,null,null,null,null,null,null,null,null,null,null,null,null,null,null,null,null,null,null,null,null,null,null,null,null,null,null,null,null,null,null,null,null,null,null,null,null,null,null,null,null,null,null,null,null,null,null,null,null,null,null,null,null,null,null,null,null,null,null,null,null,null,null,null,null,null,null,null,null,null,null,null,null,null,null,null,null,null,null,null,null,null,null,null,null,null,null,null,null,null,null,null,null,null,null,null,null,null,null,null,null,null,null,null,null,null,null,null,null,null,null,null,null,null,null,null,null,null,null,null,null,null,null,null,null,null,null,null,null,null,null,null,null,null,null,null,null,null,null,null,null,null,null,null,null,null,null,null,null,null,null,null,null,null,null,null,null,null,null,null,null,null,null,null,null,null,null,null,null,null,null,null,null,null,null,null,null,null,null,null,null,null,null,null,null,null,null,null,null,null,null,null,null,null,null,null,null,null,null,null,null,null,null,null,null,null,null,null,null,null,null,null,null,null,null,null,null,null,null,null,null,null,null,null,null,null,null,null,null,null,null,null,null,null,null,null,null,null,null,null,null,null,null,null,null,null,null,null,null,null,null,null,null,null,null,null,null,null,null,null,null,null,null,null,null,null,null,null,null,null,null,null,null,null,null,null,null,null,null,null,null,null,null,null,null,null,null,null,null,null,null,null,null,null,null,null,null,null,null,null,null,null,null,null,null,null,null,null,null,null,null,null,null,null,null,null,null,null,null,null,null,null,null,null,null,null,null,null,null,null,null,null,null,null,null,null,null,null,null,null,null,null,null,null,null,null,null,null,null,null,null,null,null,null,null,null,null,null,null,null,null,null,null,null,null,null,null,null,null,null,null,null,null,null,null,null,null,null,null,null,null,null,null,null,null,null,null,null,null,null,null,null,null,null,null,null,null,null,null,null,null,null,null,null,null,null,null,null,null,null,null,null,null,null,null,null,null,null,null,null,null,null,null,null,null,null,null,null,null,null,null,null,null,null,null,null,null,null,null,null,null,null,null,null,null,null,null,null,null,null,null,null,null,null,null,null,null,null,null,null,null,null,null,null,null,null,null,null,null,null,null,null,null,null,null,null,null,null,null,null,null,null,null,null,null,null,null,null,null,null,null,null,null,null,null,null,null,null,null,null,null,null,null,null,null,null,null,null,null,null,null,null,null,null,null,null,null,null,null,null,null,null,null,null,null,null,null,null,null,null,null,null,null,null,null,null,null,null,null,null,null,null,null,null,null,null,null,null,null,null,null,null,null,null,null,null,null,null,null,null,null,null,null,null,null,null,null,null,null,null,null,null,null,null,null,null,null,null,null,null,null,null,null,null,null,null,null,null,null,null,null,null,null,null,null,null,null,null,null,null,null,null,null,null,null,null,null,null,null,null,null,null,null,null,null,null,null,null,null,null,null,null,null,null,null,null,null,null,null,null,null,null,null,null,null,null,null,null,null,null,null,null,null,null,null,null,null,null,null,null,null,null,null,null,null,null,null,null,null,null,null,null,null,null,null,null,null,null,null,null,null,null,null,null,null,null,null,null,null,null,null,null,null,null,null,null,null,null,null,null,null,null,null,null,null,null,null,null,null,null,null,null,null,null,null,null,null,null,null,null,null,null,null,null,null,null,null,null,null,null,null,null,null,null,null,null,null,null,null,null,null,null,null,null,null,null,null,null,null,null,null,null,null,null,null,null,null,null,null,null,null,null,null,null,null,null,null,null,null,null,null,null,null,null,null,null,null,null,null,null,null,null,null,null,null,null,null,null,null,null,null,null,null,null,null,null,null,null,null,null,null,null,null,null,null,null,null,null,null,null,null,null,null,null,null,null,null,null,null,null,null,null,null,null,null,null,null,null,null,null,null,null,null,null,null,null,null,null,null,null,null,null,null,null,null,null,null,null,null,null,null,null,null,null,null,null,null,null,null,null,null,null,null,null,null,null,null,null,null,null,null,null,null,null,null,null,null,null,null,null,null,null,null,null,null,null,null,null,null,null,null,null,null,null,null,null,null,null,null,null,null,null,null,null,null,null,null,null,null,null,null,null,null,null,null,null,null,null,null,null,null,null,null,null,null,null,null,null,null,null,null,null,null,null,null,null,null,null,null,null,null,null,null,null,null,null,null,null,null,null,null,null,null,null,null,null,null,null,null,null,null,null,null,null,null,null,null,null,null,null,null,null,null,null,null,null,null,null,null,null,null,null,null,null,null,null,null,null,null,null,null,null,null,null,null,null,null,null,null,null,null,null,null,null,null,null,null,null,null,null,null,null,null,null,null,null,null,null,null,null,null,null,null,null,null,null,null,null,null,null,null,null,null,null,null,null,null,null,null,null,null,null,null,null,null,null,null,null,null,null,null,null,null,null,null,null,null,null,null,null,null,null,null,null,null,null,null,null,null,null,null,null,null,null,null,null,null,null,null,null,null,null,null,null,null,null,null,null,null,null,null,null,null,null,null,null,null,null,null,null,null,null,null,null,null,null,null,null,null,null,null,null,null,null,null,null,null,null,null,null,null,null,null,null,null,null,null,null,null,null,null,null,null,null,null,null,null,null,null,null,null,null,null,null,null,null,null,null,null,null,null,null,null,null,null,null,null,null,null,null,null,null,null,null,null,null,null,null,null,null,null,null,null,null,null,null,null,null,null,null,null,null,null,null,null,null,null,null,null,null,null,null,null,null,null,null,null,null,null,null,null,null,null,null,null,null,null,null,null,null,null,null,null,null,null,null,null,null,null,null,null,null,null,null,null,null,null,null,null,null,null,null,null,null,null,null,null,null,null,null,null,null,null,null,null,null,null,null,null,null,null,null,null,null,null,null,null,null,null,null,null,null,null,null,null,null,null,null,null,null,null,null,null,null,null,null,null,null,null,null,null,null,null,null,null,null,null,null,null,null,null,null,null,null,null,null,null,null,null,null,null,null,null,null,null,null,null,null,null,null,null,null,null,null,null,null,null,null,null,null,null,null,null,null,null,null,null,null,null,null,null,null,null,null,null,null,null,null,null,null,null,null,null,null,null,null,null,null,null,null,null,null,null,null,null,null,null,null,null,null,null,null,null,null,null,null,null,null,null,null,null,null,null,null,null,null,null,null,null,null,null,null,null,null,null,null,null,null,null,null,null,null,null,null,null,null,null,null,null,null,null,null,null,null,null,null,null,null,null,null,null,null,null,null,null,null,null,null,null,null,null,null,null,null,null,null,null,null,null,null,null,null,null,null,null,null,null,null,null,null,null,null,null,null,null,null,null,null,null,null,null,null,null,null,null,null,null,null,null,null,null,null,null,null,null,null,null,null,null,null,null,null,null,null,null,null,null,null,null,null,null,null,null,null,null,null,null,null,null,null,null,null,null,null,null,null,null,null,null,null,null,null,null,null,null,null,null,null,null,null,null,null,null,null,null,null,null,null,null,null,null,null,null,null,null,null,null,null,null,null,null,null,null,null,null,null,null,null,null,null,null,null,null,null,null,null,null,null,null,null,null,null,null,null,null,null,null,null,null,null,null,null,null,null,null,null,null,null,null,null,null,null,null,null,null,null,null,null,null,null,null,null,null,null,null,null,null,null,null,null,null,null,null,null,null,null,null,null,null,null,null,null,null,null,null,null,null,null,null,null,null,null,null,null,null,null,null,null,null,null,null,null,null,null,null,null,null,null,null,null,null,null,null,null,null,null,null,null,null,null,null,null,null,null,null,null,null,null,null,null,null,null,null,null,null,null,null,null,null,null,null,null,null,null,null,null,null,null,null,null,null,null,null,null,null,null,null,null,null,null,null,null,null,null,null,null,null,null,null,null,null,null,null,null,null,null,null,null,null,null,null,null,null,null,null,null,null,null,null,null,null,null,null,null,null,null,null,null,null,null,null,null,null,null,null,null,null,null,null,null,null,null,null,null,null,null,null,null,null,null,null,null,null,null,null,null,null,null,null,null,null,null,null,null,null,null,null,null,null,null,null,null,null,null,null,null,null,null,null,null,null,null,null,null,null,null,null,null,null,null,null,null,null,null,null,null,null,null,null,null,null,null,null,null,null,null,null,null,null,null,null,null,null,null,null,null,null,null,null,null,null,null,null,null,null,null,null,null,null,null,null,null,null,null,null,null,null,null,null,null,null,null,null,null,null,null,null,null,null,null,null,null,null,null,null,null,null,null,null,null,null,null,null,null,null,null,null,null,null,null,null,null,null,null,null,null,null,null,null,null,null,null,null,null,null,null,null,null,null,null,null,null,null,null,null,null,null,null,null,null,null,null,null,null,null,null,null,null,null,null,null,null,null,null,null,null,null,null,null,null,null,null,null,null,null,null,null,null,null,null,null,null,null,null,null,null,null,null,null,null,null,null,null,null,null,null,null,null,null,null,null,null,null,null,null,null,null,null,null,null,null,null,null,null,null,null,null,null,null,null,null,null,null,null,null,null,null,null,null,null,null,null,null,null,null,null,null,null,null,null,null,null,null,null,null,null,null,null,null,null,null,null,null,null,null,null,null,null,null,null,null,null,null,null,null,null,null,null,null,null,null,null,null,null,null,null,null,null,null,null,null,null,null,null,null,null,null,null,null,null,null,null,null,null,null,null,null,null,null,null,null,null,null,null,null,null,null,null,null,null,null,null,null,null,null,null,null,null,null,null,null,null,null,null,null,null,null,null,null,null,null,null,null,null,null,null,null,null,null,null,null,null,null,null,null,null,null,null,null,null,null,null,null,null,null,null,null,null,null,null,null,null,null,null,null,null,null,null,null,null,null,null,null,null,null,null,null,null,null,null,null,null,null,null,null,null,null,null,null,null,null,null,null,null,null,null,null,null,null,null,null,null,null,null,null,null,null,null,null,null,null,null,null,null,null,null,null,null,null,null,null,null,null,null,null,null,null,null,null,null,null,null,null,null,null,null,null,null,null,null,null,null,null,null,null,null,null,null,null,null,null,null,null,null,null,null,null,null,null,null,null,null,null,null,null,null,null,null,null,null,null,null,null,null,null,null,null,null,null,null,null,null,null,null,null,null,null,null,null,null,null,null,null,null,null,null,null,null,null,null,null,null,null,null,null,null,null,null,null,null,null,null,null,null,null,null,null,null,null,null,null,null,null,null,null,null,null,null,null,null,null,null,null,null,null,null,null,null,null,null,null,null,null,null,null,null,null,null,null,null,null,null,null,null,null,null,null,null,null,null,null,null,null,null,null,null,null,null,null,null,null,null,null,null,null,null,null,null,null,null,null,null,null,null,null,null,null,null,null,null,null,null,null,null,null,null,null,null,null,null,null,null,null,null,null,null,null,null,null,null,null,null,null,null,null,null,null,null,null,null,null,null,null,null,null,null,null,null,null,null,null,null,null,null,null,null,null,null,null,null,null,null,null,null,null,null,null,null,null,null,null,null,null,null,null,null,null,null,null,null,null,null,null,null,null,null,null,null,null,null,null,null,null,null,null,null,null,null,null,null,null,null,null,null,null,null,null,null,null,null,null,null,null,null,null,null,null,null,null,null,null,null,null,null,null,null,null,null,null,null,null,null,null,null,null,null,null,null,null,null,null,null,null,null,null,null,null,null,null,null,null,null,null,null,null,null,null,null,null,null,null,null,null,null,null,null,null,null,null,null,null,null,null,null,null,null,null,null,null,null,null,null,null,null,null,null,null,null,null,null,null,null,null,null,null,null,null,null,null,null,null,null,null,null,null,null,null,null,null,null,null,null,null,null,null,null,null,null,null,null,null,null,null,null,null,null,null,null,null,null,null,null,null,null,null,null,null,null,null,null,null,null,null,null,null,null,null,null,null,null,null,null,null,null,null,null,null,null,null,null,null,null,null,null,null,null,null,null,null,null,null,null,null,null,null,null,null,null,null,null,null,null,null,null,null,null,null,null,null,null,null,null,null,null,null,null,null,null,null,null,null,null,null,null,null,null,null,null,null,null,null,null,null,null,null,null,null,null,null,null,null,null,null,null,null,null,null,null,null,null,null,null,null,null,null,null,null,null,null,null,null,null,null,null,null,null,null,null,null,null,null,null,null,null,null,null,null,null,null,null,null,null,null,null,null,null,null,null,null,null,null,null,null,null,null,null,null,null,null,null,null,null,null,null,null,null,null,null,null,null,null,null,null,null,null,null,null,null,null,null,null,null,null,null,null,null,null,null,null,null,null,null,null,null,null,null,null,null,null,null,null,null,null,null,null,null,null,null,null,null,null,null,null,null,null,null,null,null,null,null,null,null,null,null,null,null,null,null,null,null,null,null,null,null,null,null,null,null,null,null,null,null,null,null,null,null,null,null,null,null,null,null,null,null,null,null,null,null,null,null,null,null,null,null,null,null,null,null,null,null,null,null,null,null,null,null,null,null,null,null,null,null,null,null,null,null,null,null,null,null,null,null,null,null,null,null,null,null,null,null,null,null,null,null,null,null,null,null,null,null,null,null,null,null,null,null,null,null,null,null,null,null,null,null,null,null,null,null,null,null,null,null,null,null,null,null,null,null,null,null,null,null,null,null,null,null,null,null,null,null,null,null,null,null,null,null,null,null,null,null,null,null,null,null,null,null,null,null,null,null,null,null,null,null,null,null,null,null,null,null,null,null,null,null,null,null,null,null,null,null,null,null,null,null,null,null,null,null,null,null,null,null,null,null,null,null,null,null,null,null,null,null,null,null,null,null,null,null,null,null,null,null,null,null,null,null,null,null,null,null,null,null,null,null,null,null,null,null,null,null,null,null,null,null,null,null,null,null,null,null,null,null,null,null,null,null,null,null,null,null,null,null,null,null,null,null,null,null,null,null,null,null,null,null,null,null,null,null,null,null,null,null,null,null,null,null,null,null,null,null,null,null,null,null,null,null,null,null,null,null,null,null,null,null,null,null,null,null,null,null,null,null,null,null,null,null,null,null,null,null,null,null,null,null,null,null,null,null,null,null,null,null,null,null,null,null,null,null,null,null,null,null,null,null,null,null,null,null,null,null,null,null,null,null,null,null,null,null,null,null,null,null,null,null,null,null,null,null,null,null,null,null,null,null,null,null,null,null,null,null,null,null,null,null,null,null,null,null,null,null,null,null,null,null,null,null,null,null,null,null,null,null,null,null,null,null,null,null,null,null,null,null,null,null,null,null,null,null,null,null,null,null,null,null,null,null,null,null,null,null,null,null,null,null,null,null,null,null,null,null,null,null,null,null,null,null,null,null,null,null,null,null,null,null,null,null,null,null,null,null,null,null,null,null,null,null,null,null,null,null,null,null,null,null,null,null,null,null,null,null,null,null,null,null,null,null,null,null,null,null,null,null,null,null,null,null,null,null,null,null,null,null,null,null,null,null,null,null,null,null,null,null,null,null,null,null,null,null,null,null,null,null,null,null,null,null,null,null,null,null,null,null,null,null,null,null,null,null,null,null,null,null,null,null,null,null,null,null,null,null,null,null,null,null,null,null,null,null,null,null,null,null,null,null,null,null,null,null,null,null,null,null,null,null,null,null,null,null,null,null,null,null,null,null,null,null,null,null,null,null,null,null,null,null,null,null,null,null,null,null,null,null,null,null,null,null,null,null,null,null,null,null,null,null,null,null,null,null,null,null,null,null,null,null,null,null,null,null,null,null,null,null,null,null,null,null,null,null,null,null,null,null,null,null,null,null,null,null,null,null,null,null,null,null,null,null,null,null,null,null,null,null,null,null,null,null,null,null,null,null,null,null,null,null,null,null,null,null,null,null,null,null,null,null,null,null,null,null,null,null,null,null,null,null,null,null,null,null,null,null,null,null,null,null,null,null,null,null,null,null,null,null,null,null,null,null,null,null,null,null,null,null,null,null,null,null,null,null,null,null,null,null,null,null,null,null,null,null,null,null,null,null,null,null,null,null,null,null,null,null,null,null,null,null,null,null,null,null,null,null,null,null,null,null,null,null,null,null,null,null,null,null,null,null,null,null,null,null,null,null,null,null,null,null,null,null,null,null,null,null,null,null,null,null,null,null,null,null,null,null,null,null,null,null,null,null,null,null,null,null,null,null,null,null,null,null,null,null,null,null,null,null,null,null,null,null,null,null,null,null,null,null,null,null,null,null,null,null,null,null,null,null,null,null,null,null,null,null,null,null,null,null,null,null,null,null,null,null,null,null,null,null,null,null,null,null,null,null,null,null,null,null,null,null,null,null,null,null,null,null,null,null,null,null,null,null,null,null,null,null,null,null,null,null,null,null,null,null,null,null,null,null,null,null,null,null,null,null,null,null,null,null,null,null,null,null,null,null,null,null,null,null,null,null,null,null,null,null,null,null,null,null,null,null,null,null,null,null,null,null,null,null,null,null,null,null,null,null,null,null,null,null,null,null,null,null,null,null,null,null,null,null,null,null,null,null,null,null,null,null,null,null,null,null,null,null,null,null,null,null,null,null,null,null,null,null,null,null,null,null,null,null,null,null,null,null,null,null,null,null,null,null,null,null,null,null,null,null,null,null,null,null,null,null,null,null,null,null,null,null,null,null,null,null,null,null,null,null,null,null,null,null,null,null,null,null,null,null,null,null,null,null,null,null,null,null,null,null,null,null,null,null,null,null,null,null,null,null,null,null,null,null,null,null,null,null,null,null,null,null,null,null,null,null,null,null,null,null,null,null,null,null,null,null,null,null,null,null,null,null,null,null,null,null,null,null,null,null,null,null,null,null,null,null,null,null,null,null,null,null,null,null,null,null,null,null,null,null,null,null,null,null,null,null,null,null,null,null,null,null,null,null,null,null,null,null,null,null,null,null,null,null,null,null,null,null,null,null,null,null,null,null,null,null,null,null,null,null,null,null,null,null,null,null,null,null,null,null,null,null,null,null,null,null,null,null,null,null,null,null,null,null,null,null,null,null,null,null,null,null,null,null,null,null,null,null,null,null,null,null,null,null,null,null,null,null,null,null,null,null,null,null,null,null,null,null,null,null,null,null,null,null,null,null,null,null,null,null,null,null,null,null,null,null,null,null,null,null,null,null,null,null,null,null,null,null,null,null,null,null,null,null,null,null,null,null,null,null,null,null,null,null,null,null,null,null,null,null,null,null,null,null,null,null,null,null,null,null,null,null,null,null,null,null,null,null,null,null,null,null,null,null,null,null,null,null,null,null,null,null,null,null,null,null,null,null,null,null,null,null,null,null,null,null,null,null,null,null,null,null,null,null,null,null,null,null,null,null,null,null,null,null,null,null,null,null,null,null,null,null,null,null,null,null,null,null,null,null,null,null,null,null,null,null,null,null,null,null,null,null,null,null,null,null,null,null,null,null,null,null,null,null,null,null,null,null,null,null,null,null,null,null,null,null,null,null,null,null,null,null,null,null,null,null,null,null,null,null,null,null,null,null,null,null,null,null,null,null,null,null,null,null,null,null,null,null,null,null,null,null,null,null,null,null,null,null,null,null,null,null,null,null,null,null,null,null,null,null,null,null,null,null,null,null,null,null,null,null,null,null,null,null,null,null,null,null,null,null,null,null,null,null,null,null,null,null,null,null,null,null,null,null,null,null,null,null,null,null,null,null,null,null,null,null,null,null,null,null,null,null,null,null,null,null,null,null,null,null,null,null,null,null,null,null,null,null,null,null,null,null,null,null,null,null,null,null,null,null,null,null,null,null,null,null,null,null,null,null,null,null,null,null,null,null,null,null,null,null,null,null,null,null,null,null,null,null,null,null,null,null,null,null,null,null,null,null,null,null,null,null,null,null,null,null,null,null,null,null,null,null,null,null,null,null,null,null,null,null,null,null,null,null,null,null,null,null,null,null,null,null,null,null,null,null,null,null,null,null,null,null,null,null,null,null,null,null,null,null,null,null,null,null,null,null,null,null,null,null,null,null,null,null,null,null,null,null,null,null,null,null,null,null,null,null,null,null,null,null,null,null,null,null,null,null,null,null,null,null,null,null,null,null,null,null,null,null,null,null,null,null,null,null,null,null,null,null,null,null,null,null,null,null,null,null,null,null,null,null,null,null,null,null,null,null,null,null,null,null,null,null,null,null,null,null,null,null,null,null,null,null,null,null,null,null,null,null,null,null,null,null,null,null,null,null,null,null,null,null,null,null,null,null,null,null,null,null,null,null,null,null,null,null,null,null,null,null,null,null,null,null,null,null,null,null,null,null,null,null,null,null,null,null,null,null,null,null,null,null,null,null,null,null,null,null,null,null,null,null,null,null,null,null,null,null,null,null,null,null,null,null,null,null,null,null,null,null,null,null,null,"eusse2024"]
[null,"Datos del inspector"]
[null,"CC","Cedula Inspector",null,"Instrucciones",null,null,"Actualizar","Calculo requerimiento de claridad"]
[null,"Nombre","Nombre inspector",null,"1. Registre sus datos como inspector"]
[null,"Certificado Eusse","# certificado inspector",null,"2. Para hacer un registro nuevo de clic sobre \"Nuevo\""]
[null,"Fecha vigencia","Dos años despues del curs",null,"3. Para actualizar las inspecciones realizadas de clic sobre \"Actualizar\"",null,null,"Nuevo","Fuerza de choque"]
[null,"Teléfono","Teléfono del inspector",null,"4. Para ver una inspección, seleccione el de su interés y de clic sobre \"Ver\""]
[null,"Correo","Correo Inspector"]
[null,"Listado de registros de inspección ",null,null,null,null,null,"Ver"]
[null,"Consecutivo","Fecha","Serial","Referencia","Resultado"]
[null,"2024-2-987654321",{"$f":"OFFSET(BD_INS!$C$1,MATCH(Tabla10[[#This Row],[Consecutivo]],BD_INS!$B:$B,0)-1,0)","v":"25/07/24"},{"$f":"OFFSET(BD_INS!$P$1,MATCH(Tabla10[[#This Row],[Consecutivo]],BD_INS!$B:$B,0)-1,0)","v":"PT.2024.12345678"},{"$f":"OFFSET(BD_INS!$O$1,MATCH(Tabla10[[#This Row],[Consecutivo]],BD_INS!$B:$B,0)-1,0)","v":"A 001 E"},{"$f":"OFFSET(BD_INS!$H$1,MATCH(Tabla10[[#This Row],[Consecutivo]],BD_INS!$B:$B,0)-1,0)","v":"No Conforme"}]

{"sheet":"R_foto","index":3,"n_rows":62,"n_cols":15,"rows_kept":62,"cut":false,"hidden":false,"merged":[[1,1,1,5]]}
[]
[null,"Registro fotografico",null,null,null,null,"Fecha",{"$f":"TODAY()","v":"2025-05-20"},null,null,null,null,null,null,"Borrar"]
[]
[null,"Referencia","Cantidad","Trazabilidad",null,"Referencia","Cantidad","Trazabilidad",null,"Referencia","Cantidad","Trazabilidad"]
[]
[]
[]
[]
[]
[]
[]
[]
[]
[]
[]
[]
[]
[]
[]
[]
[]
[]
[null,"Referencia","Cantidad","Trazabilidad",null,"Referencia","Cantidad","Trazabilidad",null,"Referencia","Cantidad","Trazabilidad"]
[]
[]
[]
[]
[]
[]
[]
[]
[]
[]
[]
[]
[]
[]
[]
[]
[]
[]
[null,"Referencia","Cantidad","Trazabilidad",null,"Referencia","Cantidad","Trazabilidad",null,"Referencia","Cantidad","Trazabilidad"]
[]
[]
[]
[]
[]
[]
[]
[]
[]
[]
[]
[]
[]
[]
[]
[]
[]
[]
[]
[null,"Referencia","Cantidad","Trazabilidad",null,"Referencia","Cantidad","Trazabilidad",null,"Referencia","Cantidad","Trazabilidad"]

{"sheet":"BD_INS","index":4,"n_rows":11,"n_cols":84,"rows_kept":11,"cut":false,"hidden":false,"merged":[]}
[null,null,null,null,null,null,null,null,null,null,null,null,null,null,null,null,null,null,null,null,null,null,null,null,null,null,null,null,null,null,null,null,null,null,null,null,null,null,null,null,null,null,null,null,null,null,null,null,null,null,null,null,null,null,null,null,null,null,null,null,null,null,null,null,null,null,null,null,null,null,null,null,null,null,null,null,null,null,null,null,null,null,null,"2024-2-2024-1234"]
[null,"Valor referencia","2024-2-987654321"]
[null,"Prueba existencia",{"$f":"+IFERROR(MATCH(C2,B:B,0),0)","v":11}]
[null,"#registros",{"$f":"COUNTA(Tabla7[ID])","v":1}]
[]
[]
[]
[]
[]
[null,"ID","Fecha","CC Inspector","Hallazgos","Recomendaciones","FT","Resultado general","Propietario NIT/CC:","Propietario Nombre:","Propietario Teléfono:","Propietario Correo:","Propietario Dirección:","Propietario Ciudad:","Referencia","Serial","Fecha fabricacion ","Compra fecha","Compra registro","HV fecha","HV registro","FT Fecha","FT Registro","Manual fecha","Manual registro","Insp fecha","Insp registro","Mante fecha","mante registr","Columna25","Columna26","Columna27","Columna28","Columna29","Columna30","Columna31","Columna32","Columna33","Columna34","Columna35","Columna36","Columna37","Columna38","Columna39","Columna40","Columna41","Columna42","Columna43","Columna44","Columna45","Columna46","Columna47","Columna48","Columna49","Columna50","Columna51","Columna52","Columna53","Columna54","Columna55","Columna56","Columna57","Columna58","Columna59","Columna60","Columna61","Columna62","Columna63","Columna64","Columna65","Columna66","Columna67","Columna68","Columna69","Columna70","Columna71","Columna72","Columna73","Columna74","Columna75","Columna76","Columna77","Columna78","Columna79"]
[null,"2024-2-987654321","25/07/24",1234567890,"Describir los hallazgos evidencias en el producto","Presente las recoemndaciones de la inspección ","Si","No Conforme",4567890123,"Eusse Seguridad",6044441220,"publicidad@eusseseguridad.com","Autopista Medellín - Bogotá, kilometro 28","Guarne - Antioquia","A 001 E","PT.2024.12345678",45292,"2024-01-01","FV 01234","2024-01-01","HV 01234","2024-01-01","A 001 E","2024-01-01","A 001 E","2024-01-01","RI 1328","2024-01-01","MP 7654","Si","No","N/A","Si","No","N/A","Si","No","N/A","No","N/A","Si","No","N/A","Si","No","N/A","Si","No","N/A","No","N/A","Si","No","N/A","Si","No","N/A","Si","No","N/A","No","N/A","N/A","Si","No","N/A","N/A","Si","No","N/A","N/A","Si","No","N/A","N/A","Si","No","N/A","Si","No","N/A","Si","No"]

{"sheet":"Ins","index":5,"n_rows":67,"n_cols":20,"rows_kept":67,"cut":false,"hidden":false,"merged":[[15,11,15,12],[22,1,22,3],[23,1,23,3],[24,1,24,3],[25,1,25,3],[21,1,21,3],[21,5,21,7],[15,1,15,2],[16,1,16,2],[17,1,17,2],[15,3,15,4],[15,5,15,6],[15,7,15,8],[15,9,15,10],[33,9,33,11],[21,9,21,11],[31,1,31,3],[32,1,32,3],[33,1,33,3],[22,5,22,7],[30,5,30,7],[23,5,23,7],[25,5,25,7],[26,5,26,7],[27,5,27,7],[31,5,31,7],[28,5,28,7],[29,5,29,7],[32,5,32,7],[26,1,26,3],[27,1,27,3],[28,1,28,3],[29,1,29,3],[30,1,30,3],[5,9,5,12],[6,2,6,4],[7,2,7,4],[8,2,8,4],[9,2,9,4],[10,2,10,4],[11,2,11,4],[6,6,6,8],[7,6,7,8],[8,6,8,8],[9,6,9,8],[10,6,10,8],[10,10,11,12],[10,9,11,9],[55,1,55,12],[54,1,54,3],[37,1,37,3],[38,1,38,3],[39,1,39,3],[40,1,40,3],[36,1,36,4],[17,3,17,4],[17,5,17,6],[17,7,17,8],[17,9,17,10],[17,11,17,12],[24,5,24,7],[22,9,22,11],[23,9,23,11],[24,9,24,11],[25,9,25,11],[26,9,26,11],[27,9,27,11],[28,9,28,11],[29,9,29,11],[30,9,30,11],[31,9,31,11],[32,9,32,11],[21,14,21,15],[21,16,21,17],[21,18,21,19],[41,1,41,4],[41,5,41,8],[41,9,41,12],[42,9,42,11],[43,9,43,11],[44,9,44,11],[37,9,37,11],[38,9,38,11],[39,9,39,11],[40,9,40,11],[36,9,36,12],[42,5,42,7],[43,5,43,7],[44,5,44,7],[37,5,37,7],[38,5,38,7],[39,5,39,7],[40,5,40,7],[36,5,36,8],[42,1,42,3],[43,1,43,3],[1,6,3,10],[53,1,53,3],[48,5,48,8],[48,9,48,12],[48,1,48,4],[49,5,54,8],[49,9,54,12],[44,1,44,3],[49,1,49,3],[50,1,50,3],[51,1,51,3],[52,1,52,3],[16,3,16,4],[16,5,16,6],[16,7,16,8],[16,9,16,10],[16,11,16,12],[11,6,11,8],[6,10,6,12],[7,10,7,12],[8,10,8,12],[9,10,9,12],[5,1,5,4],[5,5,5,8]]}
[{"$f":"Informe!A1","v":"eusse2024"}]
[null,"Reporte de Inspección ",null,null,null,null,"www.eusseseguridad.com\ninfo@eusseseguridad.com\n604 444 1220\nkm 28 autopista Medellín - Bogotá, Guarne Antioquia"]
[null,"Consecutivo:","2024-2-987654321",null,"Fecha:","25/07/24"]
[null,"Datos generales"]
[]
[null,"Inspector",null,null,null,"Propietario",null,null,null,"Producto"]
[null,"CC:",{"$f":"IF(Informe!C3=0,\"\",Informe!C3)","v":"Cedula Inspector"},null,null,"NIT/CC:",4567890123,null,null,"Referencia:","A 001 E"]
[null,"Nombre:",{"$f":"IF(Informe!C4=0,\"\",Informe!C4)","v":"Nombre inspector"},null,null,"Nombre:","Eusse Seguridad",null,null,"Serial:","PT.2024.12345678"]
[null,"Certificado Eusse:",{"$f":"IF(Informe!C5=0,\"\",Informe!C5)","v":"# certificado inspector"},null,null,"Teléfono:",6044441220,null,null,"Fecha fabricación:","2024-01-01"]
[null,"Fecha vigencia:",{"$f":"IF(Informe!C6=0,\"\",Informe!C6)","v":"Dos años despues del curs"},null,null,"Correo:","publicidad@eusseseguridad.com",null,null,"Norma técnica:",{"$f":"IFERROR(OFFSET(BD_Pro!$E$1,MATCH(Ins!K7,BD_Pro!B:B,0)-1,0),\"\")","v":"ANSI/ASSP Z359.11"}]
[null,"Teléfono:",{"$f":"IF(Informe!C7=0,\"\",Informe!C7)","v":"Teléfono del inspector"},null,null,"Dirección:","Autopista Medellín - Bogotá, kilometro 28",null,null,"Descripción:",{"$f":"IFERROR(OFFSET(BD_Pro!$C$1,MATCH(Ins!K7,BD_Pro!B:B,0)-1,0),\"\")","v":"Arnés de cuerpo entero con cinco puntos de anclaje,faja de protección lumbar, con portaherramientas"}]
[null,"Correo:",{"$f":"IF(Informe!C8=0,\"\",Informe!C8)","v":"Correo Inspector"},null,null,"Ciudad:","Guarne - Antioquia"]
[]
[null,"Revisión documental (registre la información de la ultima evidencia)"]
[]
[null,"Evidencia compra",null,"Hoja de vida",null,"Ficha técnica",null,"Manual del usuario",null,"Ultima inspección ",null,"Ultimo mantenimiento"]
[null,"2024-01-01",null,"2024-01-01",null,"2024-01-01",null,"2024-01-01",null,"2024-01-01",null,"2024-01-01"]
[null,"FV 01234",null,"HV 01234",null,"A 001 E",null,"A 001 E",null,"RI 1328",null,"MP 7654"]
[]
[null,"Inspección de aspectos generales"]
[]
[null,"General",null,null,"Estado","Inspección textiles",null,null,"Estado","Inspección metálicos",null,null,"Estado",null,"General",null,"Textiles",null,"Metálicos"]
[null,"La etiqueta presenta la información legible y contiene serial, referencia, fecha y certificación",null,null,"Si","Las cintas, cuerdas e hilo de costura, son homogéneos en su longitud",null,null,"Si","Los componentes metálicos presentan deformación, abolladuras, grietas y demás defectos similares",null,null,"No",null,"Si",{"$f":"IF(E23=\"N/A\",0,IF(E23=$O23,0,1))","v":0},"Si",{"$f":"IF(I23=\"N/A\",0,IF(I23=$Q23,0,1))","v":0},"No",{"$f":"IF(M23=\"N/A\",0,IF(M23=$S23,0,1))","v":0}]
[null,"El producto presenta alteraciones, modificaciones, reparaciones y/o variaciones",null,null,"No","Las costuras están completas, hilo de color contraste, puntadas de seguridad e integra",null,null,"Si","El elemento metálico presenta cierre y seguro automático",null,null,"Si",null,"No",0,"Si",0,"Si",0]
[null,"El producto presenta cambios no autorizadas por el fabricante",null,null,"No","Las cintas y/o cuerdas, presentan cortes que afecten la estructura",null,null,"No","El componente metálico presenta oxidación grado III (libera cristales al friccionar)",null,null,"No",null,"No",0,"No",0,"No",0]
[null,"El producto presenta signos de mal uso, uso indebido y/o desgastes diferentes al correcto uso",null,null,"No","Las cintas y/o cuerdas presentan deshilaches o desgastes que puedan afectar su comportamiento",null,null,"No","El componente metálico esta lubricado y sus partes funcionan correctamente",null,null,"Si",null,"No",0,"No",0,"Si",0]
[null,"El producto presenta signos de caída libre, indicador activado o evidencia de caída libre",null,null,"No","La funda de las cuerdas esta completa sin permitir ver el alma dentro de ella",null,null,"Si","Las compuertas del componente metálico funcionan correctamente evitando la liberación involuntaria",null,null,"Si",null,"No",0,"Si",0,"Si",0]
[null,"Todos sus componentes están completos y funcionan correctamente",null,null,"Si","En la cuerda al hacer el ensayo de doblez se identifican fallas o cierre completo",null,null,"No","El producto presenta alteraciones, modificaciones, reparaciones y/o variaciones",null,null,"No",null,"Si",0,"No",0,"No",0]
[null,"El producto presenta objetos extraños, que afecten la funcionalidad del  producto",null,null,"No","El ancho de las cintas que soportan el peso del usuario presentan un ancho mínimo de 44mm",null,null,"Si","El producto presenta cambios no autorizadas por el fabricante",null,null,"No",null,"No",0,"Si",0,"No",0]
[null,"Las partes plásticas están completas y sin signos de quiebre o similares",null,null,"Si","El diámetro de las cuerdas es igual a la descrita en el etiquetado",null,null,"Si","El producto presenta signos de mal uso, uso indebido y/o desgastes diferentes al correcto uso",null,null,"No",null,"Si",0,"Si",0,"No",0]
[null,"Las piezas para portar equipos y demás accesorios están completas y funcionales",null,null,"Si","El producto presenta quemaduras por fuentes de calor",null,null,"No","El componentes metálico presenta marcaciones y/o afectaciones a su estructura",null,null,"No",null,"Si",0,"No",0,"No",0]
[null,"Los indicadores de uso, impacto, degaste y demás están completos y funcionales",null,null,"Si","Las cintas y/o cuerdas presenta decoloración atribuible a quemadura por sustancias químicas",null,null,"No","El elemento metálico requiere de dos movimientos consecutivos y deliberados para su apertura",null,null,"Si",null,"Si",0,"No",0,"Si",0]
[null,"El producto presenta desgaste normal acorde al tiempo de uso, tarea asignada y similares",null,null,"Si","Los componentes textiles presentan zonas que al doblar, las fibras se quiebran",null,null,"No","Los componentes metálicos son del material identificado en el etiquetado",null,null,"Si",null,"Si",0,"No",0,"Si",0]
[null,null,null,null,null,null,null,null,null,null,null,null,null,null,null,{"$f":"COUNTIF(P23:P33,1)","v":0},null,{"$f":"COUNTIF(R23:R33,1)","v":0},null,{"$f":"COUNTIF(T23:T33,1)","v":0}]
[null,"Inspección requisitos de diseño",null,null,null,null,null,null,"Producto conforme a ficha técnica en forma, longitud, talla y demás similares",null,null,null,"Si"]
[]
[null,"ANSI/ASSP Z359.3 eslinga",null,null,null,"ANSI/ASSP Z359.11 arnés",null,null,null,"ANSI/ASSP Z359.13 absorbedor"]
[null,"Ajustador de longitud funciona correctamente",null,null,"Si","Argolla dorsal incluida en el equipo",null,null,"Si","Clasificación 6ft, para caída libre hasta 1,8m",null,null,"Si",null,"Si",{"$f":"IF(E38=\"N/A\",0,IF(E38=$O38,0,1))","v":0},"Si",{"$f":"IF(I38=\"N/A\",0,IF(I38=$Q38,0,1))","v":0},"Si",{"$f":"IF(M38=\"N/A\",0,IF(M38=$S38,0,1))","v":0}]
[null,"Elemento que evita liberación completa de ajustador",null,null,"Si","Correa cruzadas en la parte dorsal",null,null,"Si","Clasificación 12ft, para caída libre hasta 3,6m",null,null,"Si",null,"Si",0,"Si",0,"Si",{"$f":"IF(M39=\"N/A\",0,IF(M39=$S39,0,1))","v":0}]
[null,"Contiene Guardacabo / protector metal - textil",null,null,"Si","Correa sub-pélvica, excepto para forma \"Y\"",null,null,"Si","Plástico protector en buen estado",null,null,"Si",null,"Si",0,"Si",0,"Si",{"$f":"IF(M40=\"N/A\",0,IF(M40=$S40,0,1))","v":0}]
[null,"Longitud de la eslinga especificada en la etiqueta",null,null,"Si","Parqueadero de eslingas (al menos uno funcional)",null,null,"Si","Componente de absorción activado",null,null,"No",null,"Si",0,"Si",0,"No",{"$f":"IF(M41=\"N/A\",0,IF(M41=$S41,0,1))","v":0}]
[null,"ANSI/ASSP Z359.15 línea de vida",null,null,null,"ANSI/ASSP Z359.18 Anclaje",null,null,null,"UNE EN 355"]
[null,"Diámetro mayor a 11mm",null,null,"Si","Tipo A, portátiles",null,null,"Si","Plástico protector en buen estado",null,null,"Si",null,"Si",{"$f":"IF(E43=\"N/A\",0,IF(E43=$O43,0,1))","v":0},"Si",0,"Si",{"$f":"IF(M43=\"N/A\",0,IF(M43=$S43,0,1))","v":0}]
[null,"En la longitud de la línea están presente nudos ",null,null,"No","Tipo T, fijos estructura (metálica, concreto, etc.)",null,null,"Si","Componente de absorción activado",null,null,"No",null,"No",0,"Si",0,"No",{"$f":"IF(M44=\"N/A\",0,IF(M44=$S44,0,1))","v":0}]
[null,"El alma permite ver la funda",null,null,"No","Tipo D, con absorbedor de impacto",null,null,"Si","Longitud de la eslinga especificada en la etiqueta",null,null,"Si",null,"No",0,"Si",0,"Si",{"$f":"IF(M45=\"N/A\",0,IF(M45=$S45,0,1))","v":0}]
[null,null,null,null,null,null,null,null,null,null,null,null,null,null,null,{"$f":"COUNTIF(P37:P45,1)","v":0},null,{"$f":"COUNTIF(R38:R45,1)","v":0},null,{"$f":"COUNTIF(T38:T45,1)","v":0}]
[null,"Consolidación de la información "]
[]
[null,"Resultado de la inspección ",null,null,null,"Hallazgos",null,null,null,"Recomendaciones"]
[null,"Aspectos generales del producto",null,null,{"$f":"IF(P34=0,\"Conforme\",\"No Conforme\")","v":"Conforme"},"Describir los hallazgos evidencias en el producto",null,null,null,"Presente las recoemndaciones de la inspección "]
[null,"Aspectos generales de textiles",null,null,{"$f":"IF(R34=0,\"Conforme\",\"No Conforme\")","v":"Conforme"}]
[null,"Aspectos generales de metálicos",null,null,{"$f":"IF(T34=0,\"Conforme\",\"No Conforme\")","v":"Conforme"}]
[null,"Comparación producto vs ficha técnica",null,null,{"$f":"IF(M35=\"Si\",\"Conforme\",\"No Conforme\")","v":"Conforme"}]
[null,{"$f":"\"Cumplimiento requisitos \"&K10","v":"Cumplimiento requisitos ANSI/ASSP Z359.11"},null,null,{"$f":"IF(SUM(P46:T46)=0,\"Conforme\",\"No Conforme\")","v":"Conforme"}]
[null,{"$f":"\"Concepto general del producto \"&K7","v":"Concepto general del producto A 001 E"},null,null,{"$f":"IF(COUNTIF(E50:E54,\"No conforme\")>0,\"No Conforme\",\"Conforme\")","v":"Conforme"}]
[null,"* en caso que el \"Concepto general del producto\" sea  \"No Conforme\" adjuntar a este informe las imágenes que lo demuestren"]
[]
[]
[]
[]
[]
[]
[null,null,"Firma del inspector",null,null,null,null,null,"Firma del representante del propietario"]
[null,null,"Nombre",{"$f":"C8","v":"Nombre inspector"},null,null,null,null,"Nombre"]
[null,null,"CC",{"$f":"C7","v":"Cedula Inspector"},null,null,null,null,"CC"]
[]
[null,null,"*Para consultar la vigencia del certificado del inspector de click"]

{"sheet":"BD_Pro","index":6,"n_rows":145,"n_cols":10,"rows_kept":145,"cut":false,"hidden":false,"merged":[]}
[]
[]
[]
[]
[]
[]
[]
[]
[]
[null,"Prod_ID","Prod_Nombre","ID_norma","Referencial","ID_Familia","Familia","Prod_Tipo","Prod_Grupo","Prod_Zona"]
[null,"A 001 E","Arnés de cuerpo entero con cinco puntos de anclaje,faja de protección lumbar, con portaherramientas",3,"ANSI/ASSP Z359.11",15,"Frontal + lateral","PT","Arnés de cuerpo entero","EPP"]
[null,"A 001 E D","Arnés de cuerpo entero con cinco puntos de anclaje,faja de protección lumbar, con portaherramientas, Dieléctrico",3,"ANSI/ASSP Z359.11",15,"Frontal + lateral","PT","Arnés de cuerpo entero","EPP"]
[null,"A 001 E EC","Arnés de cuerpo entero, espacios confinados, 7 argollas, en forma de \"H\", con faja lumbar",3,"ANSI/ASSP Z359.11",15,"Frontal + lateral","PT","Arnés de cuerpo entero","EPP"]
[null,"A 001 E PP","Arnés de cuerpo entero con cinco puntos de anclaje,faja de protección lumbar, con portaherramientas, Con Argollas recubiertas para evitar la oxidación.",3,"ANSI/ASSP Z359.11",15,"Frontal + lateral","PT","Arnés de cuerpo entero","EPP"]
[null,"A 001 E PP EC","Arnés de cuerpo entero, espacios confinados, 7 argollas con protección a la oxidación, en forma de \"H\", con faja lumbar",3,"ANSI/ASSP Z359.11",17,"Frontal + lateral + hombros","PT","Arnés de cuerpo entero","EPP"]
[null,"A 001 ED EC","Arnés de cuerpo entero, espacios confinados,7 argollas con protección dieléctrica, en forma de \"H\", con faja lumbar",3,"ANSI/ASSP Z359.11",17,"Frontal + lateral + hombros","PT","Arnés de cuerpo entero","EPP"]
[null,"A 004","Arnés de cuerpo entero con cuatro puntos de anclaje",3,"ANSI/ASSP Z359.11",15,"Frontal + lateral","PT","Arnés de cuerpo entero","EPP"]
[null,"A 004 D","Arnés de cuerpo entero con cuatro puntos de anclaje",3,"ANSI/ASSP Z359.11",15,"Frontal + lateral","PT","Arnés de cuerpo entero","EPP"]
[null,"A 004 D EC","Arnés de cuerpo entero, espacios confinados, 6 argollas con protección dieléctrica, en forma de \"X\", con faja lumbar",3,"ANSI/ASSP Z359.11",17,"Frontal + lateral + hombros","PT","Arnés de cuerpo entero","EPP"]
[null,"A 004 EC","Arnés de cuerpo entero, espacios confinados, 6 argollas, en forma de \"X\", con faja lumbar",3,"ANSI/ASSP Z359.11",15,"Frontal + lateral","PT","Arnés de cuerpo entero","EPP"]
[null,"A 004 PP","Arnés de cuerpo entero con cuatro puntos de anclaje Con Argollas recubiertas para evitar la oxidación.",3,"ANSI/ASSP Z359.11",15,"Frontal + lateral","PT","Arnés de cuerpo entero","EPP"]
[null,"A 004 PP EC","Arnés de cuerpo entero, espacios confinados, 6 argollas con protección a la oxidación, en forma de \"X\", con faja lumbar",3,"ANSI/ASSP Z359.11",17,"Frontal + lateral + hombros","PT","Arnés de cuerpo entero","EPP"]
[null,"A 004 SF","Arnés de cuerpo entero con cuatro puntos de anclaje",3,"ANSI/ASSP Z359.11",15,"Frontal + lateral","PT","Arnés de cuerpo entero","EPP"]
[null,"A 004 SF D","Arnés de cuerpo entero con cuatro puntos de anclaje, Dieléctrico",3,"ANSI/ASSP Z359.11",15,"Frontal + lateral","PT","Arnés de cuerpo entero","EPP"]
[null,"A 004 SF D EC","Arnés de cuerpo entero, espacios confinados,6 argollas con protección dieléctrica, en forma de \"X\"",3,"ANSI/ASSP Z359.11",17,"Frontal + lateral + hombros","PT","Arnés de cuerpo entero","EPP"]
[null,"A 004 SF EC","Arnés de cuerpo entero, espacios confinados, 6 argollas, en forma de \"X\"",3,"ANSI/ASSP Z359.11",15,"Frontal + lateral","PT","Arnés de cuerpo entero","EPP"]
[null,"A 004 SF PP","Arnés de cuerpo entero con cuatro puntos de anclaje, Con Argollas recubiertas para evitar la oxidación.",3,"ANSI/ASSP Z359.11",15,"Frontal + lateral","PT","Arnés de cuerpo entero","EPP"]
[null,"A 004 SF PP EC","Arnés de cuerpo entero, espacios confinados, 6 argollas en forma de \"X\", herraje con protección a la oxidación",3,"ANSI/ASSP Z359.11",17,"Frontal + lateral + hombros","PT","Arnés de cuerpo entero","EPP"]
[null,"A 005","Arnés de cuerpo entero con un punto de anclaje",3,"ANSI/ASSP Z359.11",7,"Solo dorsal","PT","Arnés de cuerpo entero","EPP"]
[null,"A 005 D","Arnés de cuerpo entero con un punto de anclaje, Dieléctrico",3,"ANSI/ASSP Z359.11",7,"Solo dorsal","PT","Arnés de cuerpo entero","EPP"]
[null,"A 005 PP","Arnés de cuerpo entero con un punto de anclaje, Con Argollas y hebillas recubiertas para evitar la oxidación.",3,"ANSI/ASSP Z359.11",7,"Solo dorsal","PT","Arnés de cuerpo entero","EPP"]
[null,"A 006","Arnés de cuerpo entero con tres puntos de anclaje",3,"ANSI/ASSP Z359.11",8,"Lateral","PT","Arnés de cuerpo entero","EPP"]
[null,"A 006 D","Arnés dieléctrico cuerpo entero, doble reglaje, en \"H\", multipropósito, 3 argollas, certificado.",3,"ANSI/ASSP Z359.11",8,"Lateral","PT","Arnés de cuerpo entero","EPP"]
[null,"A 006 PP","Arnés de cuerpo entero con tres puntos de anclaje, Con Argollas y hebillas recubiertas para evitar la oxidación.",3,"ANSI/ASSP Z359.11",8,"Lateral","PT","Arnés de cuerpo entero","EPP"]
[null,"A 007","Arnés de cuerpo entero, con dos puntos de anclaje",3,"ANSI/ASSP Z359.11",11,"Frontal","PT","Arnés de cuerpo entero","EPP"]
[null,"A 007 D","Arnés de cuerpo entero, con dos puntos de anclaje",3,"ANSI/ASSP Z359.11",11,"Frontal","PT","Arnés de cuerpo entero","EPP"]
[null,"A 007 PP","Arnés de cuerpo entero, con dos puntos de anclaje, Con Argollas y hebillas recubiertas para evitar la oxidación.",3,"ANSI/ASSP Z359.11",11,"Frontal","PT","Arnés de cuerpo entero","EPP"]
[null,"A 008","Arnés de cuerpo entero con silla, cuatro (4) puntos de anclaje, silla para desplazamientos por cable, doble reglaje (ajuste en pernera y correas de pecho), multipropósito permite restricción, detención de caídas y trabajo en suspendido, en forma de \"","PT",null,null,null,"PT","A medida"]
[null,"A 009","Silla para trabajo en alturas",null,null,null,"PT","Accesorio trabajo en alturas"]
[null,"A 012","Arnés de rescate de cuerpo entero con cinco puntos de anclaje, con silla",3,"ANSI/ASSP Z359.11",19,"Esternal + frontal + lateral","PT","Arnés de cuerpo entero","EPP"]
[null,"A 012 D","Arnés de rescate de cuerpo entero con cinco puntos de anclaje, con silla",3,"ANSI/ASSP Z359.11",19,"Esternal + frontal + lateral","PT","Arnés de cuerpo entero","EPP"]
[null,"A 012 D EC","Arnés de cuerpo entero, espacios confinados, 7 argollas con protección dieléctrica, en forma de \"Y\", incluye faja de protección lumbar y perneras",3,"ANSI/ASSP Z359.11",20,"Esternal + frontal + lateral + hombros","PT","Arnés de cuerpo entero","EPP"]
[null,"A 012 EC","Arnés de cuerpo entero, espacios confinados, 7 argollas, en forma de \"Y\", incluye faja de protección lumbar y perneras",3,"ANSI/ASSP Z359.11",19,"Esternal + frontal + lateral","PT","Arnés de cuerpo entero","EPP"]
[null,"A 012 PP","Arnés de rescate de cuerpo entero con cinco puntos de anclaje, con silla, Con Argollas y hebillas recubiertas para evitar la oxidación.",3,"ANSI/ASSP Z359.11",19,"Esternal + frontal + lateral","PT","Arnés de cuerpo entero","EPP"]
[null,"A 012 PP EC","Arnés de cuerpo entero, espacios confinados, 7 argollas en forma de \"Y\", herraje con protección a la oxidación, incluye faja de protección lumbar y perneras, incluye faja de protección lumbar y perneras",3,"ANSI/ASSP Z359.11",20,"Esternal + frontal + lateral + hombros","PT","Arnés de cuerpo entero","EPP"]
[null,"A 013","Arnés de cuerpo entero con cinco puntos de anclaje, en forma de H",3,"ANSI/ASSP Z359.11",15,"Frontal + lateral","PT","Arnés de cuerpo entero","EPP"]
[null,"A 013 EC","Arnés de cuerpo entero, espacios confinados, 7 argollas, en forma de \"H\"",3,"ANSI/ASSP Z359.11",15,"Frontal + lateral","PT","Arnés de cuerpo entero","EPP"]
[null,"A 013 PP","Arnés de cuerpo entero con cinco puntos de anclaje, Con Argollas y hebillas recubiertas para evitar la oxidación.",3,"ANSI/ASSP Z359.11",15,"Frontal + lateral","PT","Arnés de cuerpo entero","EPP"]
[null,"A 013 PP EC","Arnés de cuerpo entero, espacios confinados, 7 argollas con protección a la oxidación, en forma de \"H\"",3,"ANSI/ASSP Z359.11",17,"Frontal + lateral + hombros","PT","Arnés de cuerpo entero","EPP"]
[null,"AD 204 SF","Arnés de cuerpo entero con cuatro puntos de anclaje",3,"ANSI/ASSP Z359.11",15,"Frontal + lateral","PT","Distribuidor","EPP"]
[null,"AD 204 SF PP","Arnés de cuerpo entero con cuatro puntos de anclaje",3,"ANSI/ASSP Z359.11",15,"Frontal + lateral","PT","Distribuidor","EPP"]
[null,"I 009","Ascendedor de alumnio, derecho o izquierdo, marca YOKE",null,null,null,null,"Com","Accesorio trabajo en alturas"]
[null,"I 013 25","mosquetón de 25 kN de resistencia",2,"ANSI/ASSP Z359.12-2019",null,"COM","Accesorio trabajo en alturas"]
[null,"I 013 40","mosquetón de 40 kN de resistencia",2,"ANSI/ASSP Z359.12-2019",null,"COM","Accesorio trabajo en alturas"]
[null,"I 013 50","mosquetón de 50 kN de resistencia",2,"ANSI/ASSP Z359.12-2019",null,"COM","Accesorio trabajo en alturas"]
[null,"I 021","Bloqueador o freno referencia I 021 + extensión en cuerda.",null,"COM","Accesorio trabajo en alturas"]
[null,"I 043","Polea sencilla en aluminio, roldana de 2\", marca YOKE",null,null,null,null,"COM","Accesorio trabajo en alturas"]
[null,"I 046","Polea doble en aluminio, roldana de 2\", marca YOKE",null,null,null,null,"COM","Accesorio trabajo en alturas"]
[null,"O 030","Tramos de cuerda de 13 mm de diámetro, de diferentes longitudes, ver observaciones",5,"ANSI/ASSP Z359.15",28,"Cuerda con ojal","PT","Cuerdas de alma y funda trenzada","Textiles_C"]
[null,"O 030 10 60","Tramos de cuerda 13 mm * 10 metros con gancho de 60 mm en una punta.",5,"ANSI/ASSP Z359.15",29,"Cuerda con ojal + gancho","PT","Cuerdas de alma y funda trenzada","Textiles_C"]
[null,"O 030 100","Tramos de cuerda 13 mm * 100 metros con ojal en una punta.",5,"ANSI/ASSP Z359.15",28,"Cuerda con ojal","PT","Cuerdas de alma y funda trenzada","Textiles_C"]
[null,"O 030 100 60","Tramos de cuerda 13 mm * 100 metros con gancho de 60 mm en una punta.",5,"ANSI/ASSP Z359.15",29,"Cuerda con ojal + gancho","PT","Cuerdas de alma y funda trenzada","Textiles_C"]
[null,"O 030 15","Tramos de cuerda 13 mm * 15 metros con ojal en una punta.",5,"ANSI/ASSP Z359.15",28,"Cuerda con ojal","PT","Cuerdas de alma y funda trenzada","Textiles_C"]
[null,"O 030 15 60","Tramos de cuerda 13 mm * 15 metros con gancho de 60 mm en una punta.",5,"ANSI/ASSP Z359.15",29,"Cuerda con ojal + gancho","PT","Cuerdas de alma y funda trenzada","Textiles_C"]
[null,"O 030 20","Tramos de cuerda 13 mm * 20 metros con ojal en una punta.",5,"ANSI/ASSP Z359.15",28,"Cuerda con ojal","PT","Cuerdas de alma y funda trenzada","Textiles_C"]
[null,"O 030 20 60","Tramos de cuerda 13 mm * 20 metros con gancho de 60 mm en una punta.",5,"ANSI/ASSP Z359.15",29,"Cuerda con ojal + gancho","PT","Cuerdas de alma y funda trenzada","Textiles_C"]
[null,"O 030 200","Tramos de cuerda 13 mm * 200 metros con ojal en una punta.",5,"ANSI/ASSP Z359.15",28,"Cuerda con ojal","PT","Cuerdas de alma y funda trenzada","Textiles_C"]
[null,"O 030 200 60","Tramos de cuerda 13 mm * 200 metros con gancho de 60 mm en una punta.",5,"ANSI/ASSP Z359.15",29,"Cuerda con ojal + gancho","PT","Cuerdas de alma y funda trenzada","Textiles_C"]
[null,"O 030 30","Tramos de cuerda 13 mm * 30 metros con ojal en una punta.",5,"ANSI/ASSP Z359.15",28,"Cuerda con ojal","PT","Cuerdas de alma y funda trenzada","Textiles_C"]
[null,"O 030 30 60","Tramos de cuerda 13 mm * 30 metros con gancho de 60 mm en una punta.",5,"ANSI/ASSP Z359.15",29,"Cuerda con ojal + gancho","PT","Cuerdas de alma y funda trenzada","Textiles_C"]
[null,"O 030 50","Tramos de cuerda 13 mm * 50 metros con ojal en una punta.",5,"ANSI/ASSP Z359.15",28,"Cuerda con ojal","PT","Cuerdas de alma y funda trenzada","Textiles_C"]
[null,"O 030 50 60","Tramos de cuerda 13 mm * 50 metros con gancho de 60 mm en una punta.",5,"ANSI/ASSP Z359.15",29,"Cuerda con ojal + gancho","PT","Cuerdas de alma y funda trenzada","Textiles_C"]
[null,"O 031","Tramos de cuerda 16 mm con ojal en una o dos puntas, con posibilidad de gancho en una o dos puntas.","PT",null,null,null,"PT","Cuerdas de alma y funda trenzada"]
[null,"O 033","Tramos de cuerda 11 mm con ojal en una o dos puntas, con posibilidad de gancho en una o dos puntas.",5,"ANSI/ASSP Z359.15",28,"Cuerda con ojal","PT","Cuerdas de alma y funda trenzada","Textiles_C"]
[null,"O 035","Cordino en poliamida 100%, en aro cerrado de longitud 80cm",null,"PT","Cuerdas de alma y funda trenzada"]
[null,"O 035 O","Cordino con ojales pre formados en cada extremo de longitud 1m",null,"PT","Cuerdas de alma y funda trenzada"]
[null,"O 041","Adaptador a pértiga",null,null,null,"PT","Accesorio trabajo en alturas"]
[null,"P 011","Eslinga en banda",null,null,null,null,"PT","Eslinga sin absorbedor","EPP"]
[null,"P 012 60 AC","Eslinga sin absorbedor",1,"ANSI/ASSP Z359.3",2,"Restricción longitud variable","PT","Eslinga sin absorbedor","EPP"]
[null,"P 012 60 AC AD","Eslinga Graduable en cuerda, con un gancho de 18 mm de abertura y el otro 60 mm en acero",1,"ANSI/ASSP Z359.3",2,"Restricción longitud variable","PT","Eslinga sin absorbedor","EPP"]
[null,"P 012 60 RAC","Eslinga sencilla con absorbedor de impacto, gancho de 60mm abertura en un extremo",4,"ANSI/ASSP Z359.13",23,"Eslinga absorbedor sencilla 6ft","PT","Eslinga con absorbedor","EPP"]
[null,"P 012 60 RAC AD","Eslinga Graduable en cuerda con dos ganchos, uno de 18 mm de abertura en acero y el otro de 60 mm de abertura en acero + reductor de impacto",4,"ANSI/ASSP Z359.13",23,"Eslinga absorbedor sencilla 6ft","PT","Eslinga con absorbedor","EPP"]
[null,"P 012 60 RAC D","Eslinga sencilla con absorbedor de impacto P 031 EN, protección dieléctrica, ganchos de 60 mm de abertura",8,"UNE EN 355",36,"Eslingas con paquete absorbedor de energía","PT","Eslinga con absorbedor","EPP"]
[null,"P 012 M","Eslinga en cuerda, conformada ganchos de 18 mm en cada uno de los extremos",1,"ANSI/ASSP Z359.3",1,"Eslingas de posicionamiento y/o restricción","PT","Eslinga sin absorbedor","EPP"]
[null,"P 012 M AD","Eslinga o cabo de amarre sencilla en Cuerda con ganchos de doble seguro automático así: 2 Gancho de 18 mm Longitud ajustable , utilizada para: Posicionamiento, Restricción,",1,"ANSI/ASSP Z359.3",6,"Restricción y posicionamiento longitud variable","PT","Eslinga sin absorbedor","EPP"]
[null,"P 012 M D","Eslinga de posicionamiento en cuerda, con ganchos dieléctricos apertura 18 mm",1,"ANSI/ASSP Z359.3",1,"Eslingas de posicionamiento y/o restricción","PT","Eslinga sin absorbedor","EPP"]
[null,"P 012 R","Eslinga o cabo de amarre sencilla en Reata con ganchos de doble seguro automático así: 2 Gancho de 18 mm , utilizada para: Posicionamiento, Restricción,",1,"ANSI/ASSP Z359.3",1,"Eslingas de posicionamiento y/o restricción","PT","Eslinga sin absorbedor","EPP"]
[null,"P 012 R110","Eslinga sencilla con absorbedor de impacto P031 EN, ganchos de 110 mm de abertura",8,"UNE EN 355",36,"Eslingas con paquete absorbedor de energía","PT","Eslinga con absorbedor","EPP"]
[null,"P 012 RU +","Eslinga en cuerda p reata, con un gancho en un extremo y el otro extremo un ojal + reductor de impacto P 031 MAS",4,"ANSI/ASSP Z359.13",23,"Eslinga absorbedor sencilla 6ft","PT","Eslinga con absorbedor","EPP"]
[null,"P 012 RU AD","Eslinga Graduable en cuerda, con un gancho en un extremo y el otro extremo un ojal + reductor de impacto",4,"ANSI/ASSP Z359.13",23,"Eslinga absorbedor sencilla 6ft","PT","Eslinga con absorbedor","EPP"]
[null,"P 012 RU C","Eslinga en cuerda, con un gancho en un extremo y el otro extremo un ojal + reductor de impacto",4,"ANSI/ASSP Z359.13",23,"Eslinga absorbedor sencilla 6ft","PT","Eslinga con absorbedor","EPP"]
[null,"P 012 RU D","Eslinga sencilla con absorbedor de impacto, protección dieléctrica, ganchos de 18 mm de abertura",4,"ANSI/ASSP Z359.13",23,"Eslinga absorbedor sencilla 6ft","PT","Eslinga con absorbedor","EPP"]
[null,"P 012 RU D +","Eslinga sencilla con absorbedor de impacto P 031 D MAS, protección dieléctrica, ganchos de 18 mm de abertura.",4,"ANSI/ASSP Z359.13",24,"Eslinga absorbedor sencilla 12ft","PT","Eslinga con absorbedor","EPP"]
[null,"P 012 RU R","Eslinga en reata, con un gancho en un extremo y el otro extremo un ojal + reductor de impacto",4,"ANSI/ASSP Z359.13",23,"Eslinga absorbedor sencilla 6ft","PT","Eslinga con absorbedor","EPP"]
[null,"P 014","Eslinga sin fin longitud 1m",null,null,null,"PT","Conector de anclaje"]
[null,"P 014 120","Eslinga sin fin, reata tubular de 25mm de ancho, longitud 120cm",null,"PT","Conector de anclaje"]
[null,"P 014 150","Eslinga sin fin, reata tubular de 25mm de ancho, longitud 150cm",null,"PT","Conector de anclaje"]
[null,"P 014 60","Eslinga sin fin, reata tubular de 25mm de ancho, longitud 60cm",null,"PT","Conector de anclaje"]
[null,"P 021 18","Eslinga o cabo de amarre doble en Reata con ganchos de doble seguro automático así: 3 Gancho de 18 mm , utilizada para: Restricción, Desplazamiento,",1,"ANSI/ASSP Z359.3",1,"Eslingas de posicionamiento y/o restricción","PT","Eslinga sin absorbedor","EPP"]
[null,"P 021 AC","Doble línea de vida, eslinga en forma de Y, conformada por: reata , tres ganchos de de 18 mm y dos para anclaje en los extremos de 60 mm",1,"ANSI/ASSP Z359.3",1,"Eslingas de posicionamiento y/o restricción","PT","Eslinga sin absorbedor","EPP"]
[null,"P 021 R18","Doble línea de vida, eslinga en forma de Y + reductor de impacto",1,"ANSI/ASSP Z359.13",23,"Eslinga absorbedor sencilla 6ft","PT","Eslinga con absorbedor","EPP"]
[null,"P 021 RAC","Doble línea de vida, eslinga en forma de Y, conformada por: reata de poliamida 100%, tres mosquetones uno de 18 mm de abertura en acero(conexión al Arnés) y dos para anclaje en los extremos de 60 mm de abertura en acero + reductor de impacto",4,"ANSI/ASSP Z359.13",25,"Eslinga con absorbedor doble 6ft","PT","Eslinga con absorbedor","EPP"]
[null,"P 021 RAC D","Eslinga doble (\"Y\") en reata con absorbedor de impacto P 031 EN, ganchos de 60 mm de abertura en cada extremo, con protección dieléctrica.",8,"UNE EN 355",36,"Eslingas con paquete absorbedor de energía","PT","Eslinga con absorbedor","EPP"]
[null,"P 022 18","Doble línea de vida, eslinga en forma de Y, conformada por: cuerda de poliamida 100%, tres mosquetones de 18 mm de abertura en acero",1,"ANSI/ASSP Z359.3",1,"Eslingas de posicionamiento y/o restricción","PT","Eslinga sin absorbedor","EPP"]
[null,"P 022 18 AD","Doble línea de vida, eslinga Graduable en forma de Y, conformada por: cuerda de poliamida 100%, tres mosquetones de 18 mm de abertura en acero",1,"ANSI/ASSP Z359.3",2,"Restricción longitud variable","PT","Eslinga sin absorbedor","EPP"]
[null,"P 022 AC","Doble línea de vida, eslinga en forma de Y, conformada por: cuerda de poliamida 100%, tres mosquetones uno de 18 mm de abertura en acero (conexión al Arnés) y dos para anclaje en los extremos de 60 mm de abertura en acero",1,"ANSI/ASSP Z359.3",1,"Eslingas de posicionamiento y/o restricción","PT","Eslinga sin absorbedor","EPP"]
[null,"P 022 AC AD","Doble línea de vida, eslinga Graduable en forma de Y, conformada por: cuerda de poliamida 100%, tres mosquetones uno de 18 mm de abertura en acero (conexión al Arnés) y dos para anclaje en los extremos de 60 mm de abertura en acero",1,"ANSI/ASSP Z359.3",2,"Restricción longitud variable","PT","Eslinga sin absorbedor","EPP"]
[null,"P 022 R110","Doble línea de vida, eslinga en forma de Y, conformada por: cuerda de poliamida 100%, tres mosquetones uno de 18 mm de abertura en acero y dos de 110 mm de abertura + reductor de impacto P 031 EN",8,"UNE EN 355",36,"Eslingas con paquete absorbedor de energía","PT","Eslinga con absorbedor","EPP"]
[null,"P 022 R18","Doble línea de vida, eslinga en forma de Y, conformada por: cuerda de poliamida 100%, tres mosquetones de 18 mm de abertura en acero + reductor de impacto",4,"ANSI/ASSP Z359.13",25,"Eslinga con absorbedor doble 6ft","PT","Eslinga con absorbedor","EPP"]
[null,"P 022 R18 AD","Doble línea de vida, eslinga en forma de Y de longitud graduable, conformada por: cuerda de poliamida 100%, tres mosquetones de 18 mm de abertura en acero + reductor de impacto",4,"ANSI/ASSP Z359.13",25,"Eslinga con absorbedor doble 6ft","PT","Eslinga con absorbedor","EPP"]
[null,"P 022 R18 D","Eslinga doble (\"Y\") con absorbedor de impacto, ganchos de 18 mm de abertura en extremo, con protección dieléctrica",4,"ANSI/ASSP Z359.13",25,"Eslinga con absorbedor doble 6ft","PT","Eslinga con absorbedor","EPP"]
[null,"P 022 R18 D +","Eslinga doble (\"Y\") con absorbedor de impacto P 031 D MAS, ganchos de 18 mm de abertura en extremo, con protección dieléctrica",4,"ANSI/ASSP Z359.13",26,"Eslinga con absorbedor doble 12ft","PT","Eslinga con absorbedor","EPP"]
[null,"P 022 RAC","Doble línea de vida en reata o cuerda con ganchos de 60 mm en acero + reductor de impacto en reata poliamida, acoplados con costura de fabrica",4,"ANSI/ASSP Z359.13",25,"Eslinga con absorbedor doble 6ft","PT","Eslinga con absorbedor","EPP"]
[null,"P 022 RAC +","Doble línea de vida en reata o cuerda con ganchos de 60 mm en acero + reductor de impacto P 031 MAS.",4,"ANSI/ASSP Z359.13",26,"Eslinga con absorbedor doble 12ft","PT","Eslinga con absorbedor","EPP"]
[null,"P 022 RAC AD","Doble línea de vida, Eslinga Graduable en cuerda con ganchos de 60 mm en acero + reductor de impacto en reata poliamida, acoplados con costura de fabrica",4,"ANSI/ASSP Z359.13",25,"Eslinga con absorbedor doble 6ft","PT","Eslinga con absorbedor","EPP"]
[null,"P 022 RAC D","Eslinga desplazamiento con absorbedor, ganchos de dieléctricos de 18 mm y de 60 mm de abertura",8,"UNE EN 355",36,"Eslingas con paquete absorbedor de energía","PT","Eslinga con absorbedor","EPP"]
[null,"P 041 1","Conector de anclaje, en reata de poliamida 100% , 45 mm de ancho con una argolla en un extremo",7,"ANSI/ASSP Z359.18",34,"Tipo A","PT","Conector de anclaje","EPP"]
[null,"P 041 1 PP","Conector de anclaje, en reata de poliamida 100% , 45 mm de ancho con una argolla recubierta para evitar la oxidación",7,"ANSI/ASSP Z359.18",34,"Tipo A","PT","Conector de anclaje","EPP"]
[null,"P 041 1.5","Conector de anclaje, en reata de poliamida 100% , 45 mm de ancho con una argolla en un extremo",7,"ANSI/ASSP Z359.18",34,"Tipo A","PT","Conector de anclaje","EPP"]
[null,"P 041 1.5 PP","Conector de anclaje, en reata de poliamida 100% , 45 mm de ancho con una argolla recubierta para evitar la oxidación",7,"ANSI/ASSP Z359.18",34,"Tipo A","PT","Conector de anclaje","EPP"]
[null,"P 041 2","Conector de anclaje, en reata de poliamida 100% , 45 mm de ancho con una argolla en un extremo",7,"ANSI/ASSP Z359.18",34,"Tipo A","PT","Conector de anclaje","EPP"]
[null,"P 041 2 PP","Conector de anclaje, en reata de poliamida 100% , 45 mm de ancho con una argolla recubierta para evitar la oxidación",7,"ANSI/ASSP Z359.18",34,"Tipo A","PT","Conector de anclaje","EPP"]
[null,"P 041 AD","Conector de anclaje, en reata de poliamida 100% , 45 mm de ancho con una argolla en un extremo, longitud graduable entre 0,5 y 2m",7,"ANSI/ASSP Z359.18",34,"Tipo A","PT","Conector de anclaje","EPP"]
[null,"P 041 D AD","Conector de anclaje, en reata de poliamida 100% , 45 mm de ancho con una argolla con protección dieléctrica, de longitud graduable de 0,5 a 2m",7,"ANSI/ASSP Z359.18",34,"Tipo A","PT","Conector de anclaje","EPP"]
[null,"P 041 D1","Conector de anclaje, en reata de poliamida 100% , 45 mm de ancho con una argolla dieléctrica en un extremo",7,"ANSI/ASSP Z359.18",34,"Tipo A","PT","Conector de anclaje","EPP"]
[null,"P 041 D1.5","Conector de anclaje, en reata de poliamida 100% , 45 mm de ancho con una argolla dieléctrica en un extremo,",7,"ANSI/ASSP Z359.18",34,"Tipo A","PT","Conector de anclaje","EPP"]
[null,"P 041 D2","Conector de anclaje, en reata de poliamida 100% , 45 mm de ancho con una argolla dieléctrica en un extremo,",7,"ANSI/ASSP Z359.18",34,"Tipo A","PT","Conector de anclaje","EPP"]
[null,"P 041 PP AD","Conector de anclaje, en reata de poliamida 100% , 45 mm de ancho con una argolla recubierta para evitar la oxidación, de longitud graduable de 0,5 a 2m",7,"ANSI/ASSP Z359.18",34,"Tipo A","PT","Conector de anclaje","EPP"]
[null,"P 042 1","Conector de anclaje, en reata de poliamida 100% , 45 mm de ancho con una argolla en cada extremo, longitud entre 0,5m y 1m",7,"ANSI/ASSP Z359.18",34,"Tipo A","PT","Conector de anclaje","EPP"]
[null,"P 042 1.5","Conector de anclaje, en reata de poliamida 100% , 45 mm de ancho con una argolla en cada extremo, longitud entre 1m y 1,5m",7,"ANSI/ASSP Z359.18",34,"Tipo A","PT","Conector de anclaje","EPP"]
[null,"P 042 2","Conector de anclaje, en reata de poliamida 100% , 45 mm de ancho con una argolla en cada extremo, longitud entre 1,5m y 2m",7,"ANSI/ASSP Z359.18",34,"Tipo A","PT","Conector de anclaje","EPP"]
[null,"P 043","Cinta PICK UP, equipo para rescates y posicionamiento, conformado por reata de poliamida 100%, hebilla de friccion segun la necesidad","PT",null,null,null,"PT","Conector de anclaje"]
[null,"P 045","Conector de anclaje de longitud graduable en reata de 45 mm de ancho",7,"ANSI/ASSP Z359.18",34,"Tipo A","PT","Conector de anclaje","EPP"]
[null,"P 046","Conector de anclaje tipo \"TIE OFF o Collarín\" , de longitud entre 0,5m a 2m, en cuerda de 11 a 16 mm",7,"ANSI/ASSP Z359.18",34,"Tipo A","PT","Conector de anclaje","EPP"]
[null,"P 046 C","Conector de anclaje tipo \"TIE OFF o Collarín\" , de longitud entre 0,5m a 2m, en cuerda de 11 a 16 mm, con protector en caucho",7,"ANSI/ASSP Z359.18",34,"Tipo A","PT","Conector de anclaje","EPP"]
[null,"P 052","ROPE STOP, equipo para posicionamiento y restricción de caídas, conformado por bloqueador sencillo+mosquetón+eslinga P 012 U",1,"ANSI/ASSP Z359.3",6,"Restricción y posicionamiento longitud variable","PT","Eslinga sin absorbedor","EPP"]
[null,"P 053 POL","Par de pretales con cuerda de 13 mm de diámetro",null,null,"PT","Accesorio trabajo en alturas"]
[null,"P 053 PPL","Par de pretales con cuerda de 16mm de diámetro",null,null,"PT","Accesorio trabajo en alturas"]
[null,"P 055","Accesorio para espacios confinados",null,null,"PT","Accesorio trabajo en alturas"]
[null,"P 060","Estrobo en cuerda de 13 mm de diámetro, ojal en ambos extremos, por metro","PT",null,null,null,"PT","Accesorio trabajo en alturas"]
[null,"P 080","Kit línea de vida vertical portátil",5,"ANSI/ASSP Z359.15",27,"Línea de vida sistema","PT","A medida","Textiles_C"]
[null,"PC O 005","Freno para guaya de 8mm de diametro, en acero inoxidable",null,null,null,null,"COM","Accesorio trabajo en alturas"]
[null,"PC O 006","Freno para guaya de 10mm de diametro, en acero inoxidable",null,null,null,null,"COM","Accesorio trabajo en alturas"]
[null,"PD 222 AC","Doble línea de vida, eslinga en forma de Y, conformada por: cuerda de poliamida 100%, tres mosquetones uno de 18 mm de abertura en acero (conexión al Arnés) y dos para anclaje en los extremos de 60 mm de abertura en acero",1,"ANSI/ASSP Z359.3",1,"Eslingas de posicionamiento y/o restricción","PT","Distribuidor","EPP"]
[null,"PD 222 RAC","Doble línea de vida en reata o cuerda con ganchos de 60 mm en acero + reductor de impacto en reata poliamida, acoplados con costura de fabrica",4,"ANSI/ASSP Z359.13",25,"Eslinga con absorbedor doble 6ft","PT","Distribuidor","EPP"]